{"text_format":"1","workbook":"xlsx","n_sheets":14,"sheets":["Form","Titles","Admissions","Manager or designee","Achieves","ADA","Competencies","Education","Exper","ManNon","Equip","SBU","Level","Sheet1"],"not_rendered":{"charts":0,"images":1,"macros":1,"external_links":0,"defined_names":8,"comments":0,"pivot_tables":0},"unopened":[],"bounds":{"document_bytes":16777216,"sheet_cells":100000,"rows_first":2000,"rows_last":500,"rows_between":2000,"halvings":0,"cell_chars":16384,"cell_head_chars":4096},"cells_cut":0,"cells_raw":0,"read":"whole","date_system":"1900"}

{"sheet":"Form","index":0,"n_rows":150,"n_cols":5,"rows_kept":150,"cut":false,"hidden":false,"merged":[[149,1,149,2],[149,3,149,4],[147,0,147,4],[59,1,59,4],[60,1,60,4],[61,1,61,4],[112,0,112,4],[113,0,113,4],[90,0,90,4],[91,0,91,4],[92,0,92,4],[93,0,93,4],[94,0,94,4],[68,0,68,4],[66,0,66,4],[67,0,67,4],[81,0,81,4],[69,0,69,4],[70,0,70,4],[71,0,71,4],[72,0,72,4],[73,0,73,4],[65,0,65,4],[78,0,78,4],[148,1,148,2],[148,3,148,4],[28,1,28,4],[29,1,29,4],[31,1,31,4],[32,1,32,4],[34,1,34,4],[35,1,35,4],[37,1,37,4],[38,1,38,4],[39,1,39,4],[33,1,33,4],[86,0,86,4],[40,1,40,4],[41,1,41,4],[42,0,42,4],[43,0,43,2],[62,0,62,4],[57,1,57,4],[58,1,58,4],[146,1,146,4],[143,1,143,4],[145,1,145,4],[130,0,130,4],[19,1,19,4],[0,1,0,4],[9,0,9,1],[8,0,8,1],[1,0,1,4],[10,0,10,4],[7,0,7,4],[13,1,13,4],[14,1,14,4],[15,1,15,4],[16,1,16,4],[17,1,17,4],[11,0,11,2],[5,1,5,4],[4,2,4,4],[20,1,20,4],[21,1,21,4],[22,1,22,4],[23,1,23,4],[25,1,25,4],[26,1,26,4],[27,1,27,4],[54,1,54,4],[55,1,55,4],[47,1,47,4],[48,1,48,4],[49,1,49,4],[51,1,51,4],[52,1,52,4],[142,0,142,4],[131,0,131,4],[132,0,132,4],[133,0,133,4],[134,0,134,4],[135,0,135,4],[114,0,114,4],[115,0,115,4],[144,1,144,4],[140,1,140,4],[128,3,128,4],[123,0,123,2],[124,0,124,2],[125,0,125,2],[123,3,123,4],[124,3,124,4],[125,3,125,4],[126,3,126,4],[127,3,127,4],[141,1,141,4],[136,1,136,4],[126,0,126,2],[127,0,127,2],[128,0,128,2],[79,0,79,4],[80,0,80,4],[83,0,83,4],[82,0,82,4],[84,0,84,4],[85,0,85,4],[45,1,45,4],[46,1,46,4],[63,0,63,2],[53,1,53,4],[64,0,64,4],[76,0,76,4],[77,0,77,4],[75,0,75,4],[74,0,74,4],[95,0,95,4],[96,0,96,4],[119,3,119,4],[120,3,120,4],[121,3,121,4],[122,3,122,4],[87,0,87,4],[88,0,88,4],[89,0,89,4],[118,3,118,4],[117,3,117,4],[117,0,117,2],[118,0,118,2],[119,0,119,2],[120,0,120,2],[121,0,121,2],[122,0,122,2],[97,0,97,4],[98,0,98,4],[99,0,99,4],[100,0,100,4],[101,0,101,4],[129,1,129,4],[137,0,137,4],[138,1,138,4],[139,1,139,4],[102,0,102,4],[103,0,103,4],[104,0,104,4],[105,0,105,4],[106,0,106,4],[107,0,107,4],[108,0,108,4],[109,0,109,4],[110,0,110,4],[111,0,111,4],[116,0,116,4]]}
[null,"    UNIVERSITY OF MASSACHUSETTS MEDICAL SCHOOL\n"]
["POSITION DESCRIPTION\n"]
["Job Title:","Job Code:    ","Department: ","L.U.:","Grade:"]
[null,{"$f":"VLOOKUP(A4,Titles!A1:B1527,2,FALSE)","v":{"$error":"#N/A"}}]
["SBU"]
["Manager/Non Manager"]
["POSITION SUMMARY:  "]
[]
[]
["Under general supervision of the:"]
["ESSENTIAL FUNCTIONS"]
[null,null,null,"%"]
[]
[]
[]
[]
[]
[]
[]
[]
[]
[]
[]
[]
[]
[]
[]
[]
[]
[]
[]
[]
[]
[]
[]
[]
[]
[]
[]
[]
[]
[]
["NONESSENTIAL FUNCTIONS"]
["Function",null,null,"%"]
[]
[]
[]
[]
[]
[]
[]
[]
[]
[]
[]
[]
[]
[]
[]
[]
[]
[]
["*The employee will also be required to perform other duties as assigned*"]
["Total of essential and non essential functions should be 95-100%:",null,null,{"$f":"(D13+D19+D25+D31+D37+D45+D51+D57)","v":0}]
["Core Competencies (expectations for all UMMS employees):"]
["ACCOUNTABILITY"]
["Holds self and others accountable for measurable, high-quality, timely, and cost effective results "]
["Consistently demonstrates energy, enthusiasm, and maximum effort in completing responsibilities "]
["Demonstrates flexibility in response to changing priorities "]
["Accepts personal responsibility for own actions, including errors"]
["Supports other team members by prioritizing and altering daily routines to complete assignments"]
["Complies with established policies, procedures, and rules "]
["Participates in cross-functional teams and works effectively with employees from diverse backgrounds "]
["INITIATIVE"]
["Takes prompt action to accomplish tasks and meet goals and objectives "]
["Completes assignments with minimal direct oversight "]
["Utilizes equipment, supplies, and technology to achieve maximum efficiency"]
["Recommends process improvements within department or organization"]
["Collaborates with other employees and departments as needed"]
["Actively participates in the development and achievement of team goals"]
["PROBLEM SOLVING/DECISION MAKING"]
["Identifies and analyzes problems weighing the relevance and accuracy of available information and recognizing one's filters, privileges, biases, and cultural preferences"]
["Generates and evaluates alternative solutions and makes effective and timely decisions"]
["Reviews the effects and implications of decisions and takes appropriate follow up actions"]
["QUANTITY/QUALITY of WORK"]
["Pays close attention to detail"]
["Strives to achieve accuracy and consistency in all tasks"]
["Organizes work to achieve maximum productivity"]
["Actively applies strategies and tactics that routinely deliver results "]
["Follows all safety rules, proactively works to prevent accidents, and encourages the use of sound judgment in order to comply with departmental and UMMS safety policies and procedures"]
["Produces a consistently high volume of work that also meets quality standards"]
["SERVICE ORIENTATION"]
["Applies effective interpersonal and problem-solving skills when responding to clients"]
["Treats all of our diverse internal and external clients with respect and courtesy"]
["Understands the needs and expectations of diverse clients and anticipates how to fulfill them"]
["Demonstrates cultural sensitivity and competence when interacting with clients, fellow employees, and guests"]
["Takes personal responsibility applying proactive, solution focused approaches in responding to client needs"]
["DIVERSITY &  INCLUSION"]
["Understands how social group identities shape the settings in which we work"]
["Demonstrates self-awareness and the ability to see other points of view, valuing diverse experiences and ways of knowing"]
["Negotiates conflict and facilitates discussions with culture competence and cultural humility"]
["Shows commitment  to continuous learning/improvement in managing diversity"]
["Leadership/Management"]
["Sets clear priorities, goals and expectations and provides timely, constructive and balanced feedback in holding staff members accountable"]
["Delegates effectively and empowers team members and flexes style when faced with diverse teams understanding and effectively managing complex group dynamics and diverse perspectives"]
["Manages performance problems and team conflicts skillfully"]
["Demonstrates effective mentoring, developing and motivating skills"]
["Inspires and fosters team commitment, spirit, pride and trust and is attentive to the well-being of her/his staff"]
["Takes a long-term view building a shared vision with staff in planning, decision making, and process improvement"]
["Acts as a positive role model"]
["Ensures that diverse, talented employees are appropriately recruited, selected, oriented, and acclimated to the organization"]
["Department/Position Specific Competencies:"]
[]
[]
[]
[]
[]
["PHYSICAL DEMANDS AND WORK ENVIRONMENT:",null,null,"Level"]
[]
[]
[]
[]
[]
[]
[]
[]
[]
[]
[]
["Add additional details here:"]
["MACHINES AND EQUIPMENT USED:"]
[]
[]
[]
[]
[]
["Add additional details here:"]
["REQUIRED QUALIFICATIONS:"]
["Education"]
["Add additional details here:"]
["Experience"]
["Add additional details here:"]
["PREFERRED QUALIFICATIONS:"]
["Education"]
["Add additional details here:"]
["Experience"]
["Add additional details here:"]
["SIGNATURES:"]
["Manager:",null,null,{"$f":"TODAY()","v":"2018-05-11"}]
["Department Head:",null,null,{"$f":"TODAY()","v":"2018-05-11"}]

{"sheet":"Titles","index":1,"n_rows":1527,"n_cols":2,"rows_kept":1527,"cut":false,"hidden":true,"merged":[]}
["Academic Administrator I","MB2044"]
["Academic Administrator II","MB2045"]
["Academic Administrator III","MB2047"]
["Academic Administrator IV","MB2048"]
["Academic Personnel Specialist","MB1014"]
["Academic Resrch Administrator","MB2046"]
["Accountant Staff II - Grant","MF2009"]
["Accountant, AR & Billing Spec","MF0039"]
["Accountant, Staff  I FS/CHCF","MF2023"]
["Accountant, Staff Ii","MF2011"]
["Accountant, Staff III","MF2007"]
["Accountant, Staff IV","MB0152"]
["Accountant, Staff IV - Grant","MF2005"]
["Accountant,Staff I","MF2066"]
["Accountant,Staff III-Grant","MF2061"]
["Accounting Manager CHCF","MB1230"]
["Accounting Supv - Properties","MF0020"]
["Accounts Payable Coord II","MJP621"]
["Accounts Payable Coord III","MJP622"]
["Accounts Payable Coordinator I","MJP620"]
["Accts Payable Rep, Sr.","MF0049"]
["Accts Payble and Payroll Spt","MF0036"]
["ACIO, Academic Technology","MC2006"]
["ACIO, Bus Rel & Consulting","MC2000"]
["ACIO, Infrastructure Services","MC0014"]
["ACIO, Project Management Ofc","MC0024"]
["ACIO, Rsch Comp & Data Innov","MC2004"]
["Activity Coordinator","MH0007"]
["Adm Dir, Grad Med Ed","MMM212"]
["Admin Assistant I","MJP350"]
["Admin Assistant II","MJP354"]
["Admin Asst I","MS0008"]
["Admin Asst II","MS0004"]
["Admin Coord - CWM Operations","MB0076"]
["Admin Dir,Student Affairs","MB1184"]
["Admin Manager I","MM1044"]
["Admin Manager II","MM1045"]
["Admin Manager III","MM1146"]
["Admin Manager IV","MM1147"]
["Admin, Contracts Division","MMM140"]
["Admin, Div Ii","MMM070"]
["Administrative Coordinator IV","MB0142"]
["Administrative Manager I","MJP349"]
["Administrative Support","02T53"]
["Administrator, Sr.","MMM321"]
["Admissions Coordinator","MMM301"]
["Adv Communications Specialist","MB0291"]
["Advancement Researcher II","MB0105"]
["ADV-Svcs & Prospect Rsch Assoc","MS0051"]
["Allied Health Clinical Coord","MB0183"]
["Allied Health Consultant","MB2662"]
["Analyst, Data","MB1222"]
["Analyst, Financial I","MF2022"]
["Analyst, Financial I - FS/CHCF","MF2020"]
["Analyst, Financial II - Grant","MF2002"]
["Analyst, Financial Sr","MF2001"]
["Analyst, Lab I","MH0074"]
["Analyst, Lab II","MH0036"]
["Analyst, Telcom Ii","MC2062"]
["Analyst, Telcom Iii","MC2061"]
["Analyst, Telcom Sr.","MC2060"]
["Analyst,Financial III","MF2062"]
["Analyst,Financial III - Budget","MF2064"]
["Analyst,Financial III - Grant","MF2063"]
["Analyst,Financial Systems","MB0178"]
["Analyst,Lab Sr.","MH0037"]
["Analyst,Space Planning","ME0023"]
["Anatomical Gift Program Coord","MB0081"]
["Animal Tech I","MJP356"]
["Animal Tech III","MJP358"]
["Appeals Coordinator","MHCB15"]
["Applic Database Developer I","MC2040"]
["Applic Database Developer II","MC2039"]
["Applic Database Developer III","MC2038"]
["Applications Analyst","MC0055"]
["AR & Cash Management Specialis","MF2067"]
["AR/GL Coordinator I","MJP650"]
["AR/GL Coordinator II","MJP651"]
["Architectural Project Mgr, Sr","MMM327"]
["Architectural Project Mgr.","ME0017"]
["Archivist","MB2030"]
["ASC Building Manager","ME0042"]
["Assist. Director of Purchasing","MB1091"]
["Assistant Maintenance Manager","MB2057"]
["Assistant Program Dir OMCR","MB2052"]
["Assoc CIO,Enterprise Networks","MC2002"]
["Assoc CIO,PST","MC2001"]
["Assoc Dean/Dir, Grad Med Ed","MMM073"]
["Assoc Dep Dir, Process Develop","MJP601"]
["Assoc Dep Dir, Regulatory Aff","MJP476"]
["Assoc Deputy Dir, Manufacturng","MJP605"]
["Assoc Deputy Director, Quality","MJP668"]
["Assoc Dir Bus Admin CWM","MMM060"]
["Assoc Dir Bus Plan & Analysis","MMM221"]
["Assoc Dir Comm,MedED&Glob Init","MB0020"]
["Assoc Dir Fin, Rptg Analys CWM","MMM062"]
["Assoc Dir Fin,Acctg,Ctrls CWM","MMM061"]
["Assoc Dir Fin,Contrac&Cons CWM","MMM063"]
["Assoc Dir Operations","MB0033"]
["Assoc Dir Parent&Comm Engagmt","MB0030"]
["Assoc Dir Process Development","MJP647"]
["Assoc Dir Product Discovery","MJP624"]
["Assoc Dir Risk Mgt","MMM020"]
["Assoc Dir Str Growth & Bus Dev","MB0025"]
["Assoc Dir Veterinary Services","MB1982"]
["Assoc Dir, Administration","MJP626"]
["Assoc Dir, Animal Care Facil","MB1300"]
["Assoc Dir, Auxiliary Services","MMM030"]
["Assoc Dir, Bus Oper & Systems","MMM304"]
["Assoc Dir, DCS","MHCB77"]
["Assoc Dir, Healthcare","MB0134"]
["Assoc Dir, Lib Education & Res","MB1172"]
["Assoc Dir, Library Info Svs","MB1057"]
["Assoc Dir, Maint Svcs","MMA347"]
["Assoc Dir, Manufacturing","MJP462"]
["Assoc Dir, MEP Engineering","MB0344"]
["Assoc Dir, Mktg Communications","MB0342"]
["Assoc Dir, NNLM NER","MB0158"]
["Assoc Dir, Practice Transform","MB0262"]
["Assoc Dir, Res Funding Svcs","MB2161"]
["Assoc Dir, Research","MJP643"]
["Assoc Dir, Revenue Operations","MBR049"]
["Assoc Dir, Validation","MJP507"]
["Assoc Dir, Waiver Client Mgmt","MB1165"]
["Assoc Dir,CFM","MMM510"]
["Assoc Dir,Corp&Fndtn Relations","MB0104"]
["Assoc Dir,Finance Admin","MMM029"]
["Assoc Dir.Grant Acctg&Complinc","MMM370"]
["Assoc Director","MHCB74"]
["Assoc Director, Facilities Ops","MJP599"]
["Assoc Director, QA","MJP565"]
["Assoc Director, QC","MJP571"]
["Assoc Director, Supply Chain","MJP667"]
["Assoc Director,cGxP IS","MJP615"]
["Assoc Director,Quality Systems","MJP569"]
["Assoc Director,Reg Affairs","MJP568"]
["Assoc EVC Operations","MMM512"]
["Assoc Fed Claim Reimbr Analyst","MB0053"]
["Assoc Healthcare Analyst","MB0130"]
["Assoc Medicaid Analyst","MB0119"]
["Assoc Medical Director ACO/ACH","MH0249"]
["Assoc Professor","MF10XX"]
["Assoc Prog Dir Pharm Ops CHCF","MMM216"]
["Assoc VC Admin & Finance","MME018"]
["Assoc VC CWM-Dir CTR H/L&E","MMM247"]
["Assoc VC HR & Diversity Mgmt","MMM049"]
["Assoc VC Innovation&Bus Devel","MMM170"]
["Assoc VC, Administration","MMM113"]
["Assoc VC, Communications","MME008"]
["Assoc VC, CWM Operations","MMM513"]
["Assoc VC, HR","MME007"]
["Assoc VC,Facilities Mgmt","MMM114"]
["Assoc Vice Chancellor for Mgmt","MMM046"]
["Assoc Vice Provost of Research","MMM386"]
["Assoc Vice Provost, Prof Devel","MMM185"]
["Assoc, Advancement","MB1453"]
["Assoc,Dosimetry","MB2140"]
["Assoc,Health Outcomes","MR0060"]
["Assoc. Dean for Allied Health","MMM394"]
["Assoc.Director,Engineering","MJP559"]
["AssocDir, Financial Operations","MMM337"]
["Associate","MB0187"]
["Associate Clinical Director","MMM345"]
["Associate Counsel","P00083"]
["Associate Director - CHPR","MB0270"]
["Associate Director PMO","MB0269"]
["Associate Director Program Dev","MB0273"]
["Associate Director,Library Ser","MC2073"]
["Associate I","MB2060"]
["Associate II","MB2058"]
["Associate II - Per Diem","MP2058"]
["Associate III","MB2061"]
["Associate Medical Director OCA","MH0254"]
["Associate Program Dir, CHCF","MMM399"]
["Associate Program Director","MMM342"]
["Asst Bursar","MF0019"]
["Asst Controller-School","MMM209"]
["Asst Dean for GSBS","MMM120"]
["Asst Dean, OUME","MMM131"]
["Asst Dean, Outreach Programs","MB0333"]
["Asst Dir Contracts","MB2039"]
["Asst Dir, Budget & Fin Rptng","MF0038"]
["Asst Dir, Career Development","MB2152"]
["Asst Dir, Claiming CHCF","MHCB24"]
["Asst Dir, Compliance","MMM397"]
["Asst Dir, Facilities","MMM019"]
["Asst Dir, Facilities Maint.","MB1197"]
["Asst Dir, Faculty Development","MB0125"]
["Asst Dir, Financial Aid","MB1227"]
["Asst Dir, Financial Systems","MF2017"]
["Asst Dir, Machine Shop","ME0122"]
["Asst Dir, Med Coord And Sub.","MHCB55"]
["Asst Dir, Pub Safety","MMM074"]
["Asst Dir, Revenue Operations","MBR047"]
["Asst Dir,Library Tech Svs","MB1021"]
["Asst Director","MHCB41"]
["Asst Manager IRB","MB0140"]
["Asst Mgr, Revenue Operations","MBR044"]
["Asst Professor","MF09XX"]
["Asst Program Director","MB2108"]
["Asst Rad Safety Officer","ME0082"]
["Asst to Exec Vice Chancellor","MB0220"]
["Asst VC CWM","MMM207"]
["Asst VC HR Services","MMM083"]
["Asst VC Mgmt & Chief of Staff","MMM383"]
["Asst VC, Admin & Finance","MMM126"]
["Asst Vice Provost Res. Funding","MMM149"]
["Asst Vice Provost, Campus Life","MMM134"]
["Asst, Accounts Payable Mgr","MF0052"]
["Asst. Director Energy Resource","MMM305"]
["Asst. VC Chief of Police","MMM123"]
["Asst.VC,Diversity & Inclusion","MMM313"]
["AsstVice Provst&Assoc Dean Adm","MMM117"]
["Audio Visual Tech II","MC0009"]
["Audiologist","MH0008"]
["Automation Engineer I","MJP589"]
["Automation Engineer II","MJP590"]
["Automation Engineer III","MJP591"]
["Automation Engineer IV","MJP592"]
["AVC Mgmt & Chief of Staff","MMM100"]
["Benefit C&R Coordinator","MBR052"]
["Benefit C&R Project Lead","MBR053"]
["Benefit Coord & Recovery Asst","MBR050"]
["Benefit Coord & Recovery Spec","MBR051"]
["Bioinformatician","MC2200"]
["Bioinformatician II","MC2201"]
["Bioinformatician III","MC2202"]
["Bioinformatician IV","MC2204"]
["Bioinformatician Sr.","MC2203"]
["Biostatistician, Ii","MC2035"]
["Biostatistician, Iii","MC2034"]
["Biostatistician, Sr.","MC2033"]
["Bldg Sys Oper Eng Shft Coord","MT3619"]
["Bldg Sys Operating Eng Lead","MT3620"]
["Budget Supervisor","MF2046"]
["Build Sys Oper Asst","ME0047"]
["Building Services,Lead","MT2021"]
["Bursar","MMM085"]
["Bus Intelligence Analyst Sr","MC2095"]
["Bus Intelligence Architect Sr","MC2096"]
["Bus Systems Integration Spec","MB0302"]
["Business Intelligence Analyst","MJP635"]
["Business Manager","MB2055"]
["Business Manager-Jp","MJP360"]
["Business Operations Analyst","MB1196"]
["Business Operations Manager","MB0316"]
["Business Partner Services Spec","MB0102"]
["Business Partner Svcs Coord","MB0101"]
["Business Sys Analyst","MC2045"]
["Business Sys Analyst Ii","MC2044"]
["Business Sys Analyst Iii","MC2043"]
["Business Sys Analyst, Sr","MC2042"]
["Business Technical Analyst","MB0026"]
["Cafeteria Assistant","MFS109"]
["Cafeteria Attendant","MFS107"]
["Calibration Technician I","MJP505"]
["Calibration Technician II","MJP471"]
["Calibration Technician III","MJP457"]
["Calibration Technician IV","MJP489"]
["CANS Program Director","MB0221"]
["Care Coordinator","MB1211"]
["Care Coordinator,UMP","MB0115"]
["Care Partner","MP0146"]
["Carpenter, Lead","MT1818"]
["Carpentry Specialist","MT1414"]
["Carpentry Specialist, Sr","MT1616"]
["Case Coord Casualty Recovery","MB1240"]
["Cashier","MFS108"]
["cGxP Computer Tech I","MJP577"]
["cGxP Computer Tech II","MJP578"]
["cGxP Computer Tech III","MJP579"]
["cGxP Database Admin I","MJP583"]
["cGxP Database Admin II","MJP584"]
["cGxP Database Admin III","MJP585"]
["cGxP DBA/Programmer I","MJP586"]
["cGxP DBA/Programmer II","MJP587"]
["cGxP DBA/Programmer III","MJP588"]
["cGxP IS Manager I","MJP348"]
["cGxP IS Manager II","MJP596"]
["cGxP Network Systems Spec I","MJP648"]
["cGxP Network/Systems Admin I","MJP580"]
["cGxP Network/Systems Admin II","MJP581"]
["cGxP Network/Systems Team Lead","MJP582"]
["cGxP Software Engineer I","MJP486"]
["cGxP Software Engineer II","MJP487"]
["cGxP Software Engineer III","MJP488"]
["Chairman of Department","MF13XX"]
["Chancellor & SVP Hlth Sciences","MMM504"]
["Chef","MFS100"]
["Chief Information Officer","MMM220"]
["Chief Medical Officer, CWM","MMM387"]
["Chief Nursing Officer","MMM315"]
["Chief of Staff to Dean/Provost","MMM003"]
["Chief of Staff to EVC CWM","MMM311"]
["CHPR Administrator","MB0227"]
["Claims QA Auditor","MB0286"]
["Clerk","MS0025"]
["Clerk II","MB0096"]
["Clerk, Data Entry I","MS0022"]
["Clerk, Data Entry Ii","MS0019"]
["Clerk, Mailroom I","MS0034"]
["Client Manager","MB0223"]
["Client Service Coordinator","MB2054"]
["Client Service Manager","MB2053"]
["Client Service Manager-I","MB2038"]
["Clinical Auditor","MN0013"]
["Clinical Coordinator","MHCB38"]
["Clinical Coordinator - PASRR","MB0276"]
["Clinical Data Liaison","MJP364"]
["Clinical Data Manager Iii","MB0048"]
["Clinical Data Specialist I","MJP421"]
["Clinical Data Specialist II","MJP369"]
["Clinical Data Staff Scientist","MJP365"]
["Clinical Director","MP2089"]
["Clinical Manager II","MJP560"]
["Clinical Mgr I","MB0226"]
["Clinical Nurse Reviewer","MN0007"]
["Clinical Nurse Specialist","MH0015"]
["Clinical Nurse Specialist","MNAN01"]
["Clinical Operator I","MJP610"]
["Clinical Operator II","MJP611"]
["Clinical Operator III","MJP612"]
["Clinical Policy Analyst I","MB2089"]
["Clinical Policy Analyst II","MB2090"]
["Clinical Program Specialist","MB2114"]
["Clinical Res Assoc IV","MR0051"]
["Clinical Research Assistant","MR0011"]
["Clinical Research Assoc II","MJP548"]
["Clinical Research Assoc. III","MJP538"]
["Clinical Research Associate I","MJP540"]
["Clinical Research Navigator","MB0024"]
["Clinical Research Tech Iii","MR2444"]
["Clinical Rev II - Field Based","MN0005"]
["Clinical Rev II - PASSR NF LOC","MN0045"]
["Clinical Rev II DME-Therapy","MN0004"]
["Clinical Reviewer I","MN0006"]
["Clinical Reviewer II - PASSR","MN0044"]
["Clinical Reviewer II PAU LTSS","MN0043"]
["Clinical Support Specialist","MB0235"]
["Clinical Veterinarian","MB1173"]
["Clinical Veterinarian Sr.","MB1167"]
["Co - Generational Fireman,Coop","MT5019"]
["Co-Generation Eng I - Main","MT1620"]
["Co-Generation Eng II - Main","MT1622"]
["Co-Generation Eng II Oper","MT1623"]
["Co-Generation Eng Iii, Main","MT1625"]
["Co-Generation Eng Iii, Oper","MT1624"]
["Co-Generation Engineer I Oper","MT1621"]
["Collaborator","MRH403"]
["Comm Outreach & Diversity Mgr","MB0219"]
["Community Outreach Director","MMM064"]
["Compensation Coordinator","MS1000"]
["Compensation Specialist I","MB2100"]
["Compensation Specialist II","MB2101"]
["Compensation Specialist III","MB2132"]
["Compliance Engineer III","MJP606"]
["Compliance Specialist","MB0260"]
["Compliance Specialist, Sr","MB0182"]
["Computer Validation Speclst II","MC0122"]
["Conference Coordinator II","MS0089"]
["Console Operator","ME0053"]
["Console Operator, Lead","ME0121"]
["Consultant Pharm. Team Lead","MB2036"]
["Consultant Pharmacist","MB1226"]
["Consultant Pharmacist I","MB2092"]
["Consultant Pharmacist II","MB2093"]
["Consultant Pharmacist III","MB2035"]
["Consultant Pharmacist IV","MB2094"]
["Consultant, Medicaid Fis Aff.","MOV054"]
["Consumer Health Librarian","MB0157"]
["Content Editor","MB0007"]
["Content Producer","MB0003"]
["Contract & Compliance Coord","MB0241"]
["Contract & Procurement Admin","MB0340"]
["Contract Administrator","MB2025"]
["Contract Administrator II","MB2017"]
["Contract Coordinator II","MHCB48"]
["Contractor","MRH413"]
["Contracts Administrator I","MF2047"]
["Contracts Administrator III","MB2019"]
["Control Technician/HVAC","MT0077"]
["Controller","MMM152"]
["Controller-MBL","MJP663"]
["Cook I","MFS105"]
["Cook II","MFS104"]
["Coord Sr, Operations","MB2056"]
["Coord Sr, Ops & Time Study","MB0264"]
["Coord, Academic Business","MB2042"]
["Coord, Admin Educ Prog","MS0080"]
["Coord, Admin Ii","MB0080"]
["Coord, Admin Iii","MB0079"]
["Coord, Adolescent Behav.","MH0214"]
["Coord, Animal Import/Export","MB2111"]
["Coord, Animal Systems","MF2016"]
["Coord, Care Comm Med","MP2105"]
["Coord, Circulation","MA0047"]
["Coord, Clerkship Education","MA0023"]
["Coord, Clinical Training","MB1448"]
["Coord, Data & Communication","MB0307"]
["Coord, Data Collection I","MB0100"]
["Coord, Document","MB2160"]
["Coord, Documentation","MS0064"]
["Coord, Education and Outreach","MB0156"]
["Coord, Educational","MB0004"]
["Coord, Facilities Materials","ME0085"]
["Coord, Fiscal Aff Chcf Ii","MHCB29"]
["Coord, HR Comm Lrng&Talent Dev","MB2109"]
["Coord, Information","MB1989"]
["Coord, Lead Time & Labor Payro","MS0032"]
["Coord, Learning Specialist","MB1062"]
["Coord, Library Tech","MC0120"]
["Coord, Med Ident&Appeals Prog","MHCB58"]
["Coord, Operations","MB2026"]
["Coord, Pedestrian Access","MS0086"]
["Coord, Program","MP2078"]
["Coord, Project","MB0083"]
["Coord, Project Mgmt","MHCB34"]
["Coord, Pub And Design","MB1205"]
["Coord, Purchasing","MF2050"]
["Coord, Reference and Education","MB0306"]
["Coord, Research Compliance","MB2150"]
["Coord, Residency Prog","MA0007"]
["Coord, Technical Data","MC0008"]
["Coord, Telephone Recruitment","MS0072"]
["Coord, Warehouse","ME0105"]
["Coord,Clinical Research I","MR0057"]
["Coord,Clinical Research II","MR0058"]
["Coord,Evidence Officer","MS0028"]
["Coord,Residency Prog II","MA0043"]
["Coord,Telecomm","MC1055"]
["Core Administration Accountant","MF0021"]
["Corp & Foundation Relatns Mgr","MB0238"]
["Cost Analyis & Compliance Supv","MF2014"]
["Cost Analyst","MF0022"]
["Cost Rptg & Rate Setting Mgr","MBR048"]
["Counselor, Mental Health I","MT0064"]
["Counselor, Mental Health II","MP2049"]
["Counselor, Milieu Residential","MP2091"]
["Credentialing & Contract Spcls","MB0232"]
["Credentialing Associate","MB0322"]
["Credentialing Manager","MHCB04"]
["Custodian II","ME0100"]
["Custodian, Lead","ME0099"]
["Data Ctr Operations Architect","MC0042"]
["Data Entry Operator","MSN085"]
["Data Entry Operator/CS III-JP","MJP536"]
["Data Entry Operator/Csii-Jp","MJP373"]
["Data Entry Operator/Cs-Jp","MJP372"]
["Data Management Coordinator","MB0324"]
["Data Management Manager","MB2016"]
["Data Scientist","MC0077"]
["Data Scientist, Associate","MC0076"]
["Data Security Admin CWM","MB0258"]
["Data Security Manager CWM","MB0257"]
["Data Security Risk&Compl Analy","MC0032"]
["Data Systems Manager","MMM333"]
["Database Administrator","MC2081"]
["Database Administrator Sr.","MC2083"]
["Database Analyst","MC1054"]
["Dean, Grad School Of Nursing","MME024"]
["Dean,Grad Sch of Biomed Sci","MME025"]
["Dental Assistant","MH0247"]
["Dental Director - DPH","MMM402"]
["Dental Svsc,Chief","MDC239"]
["Dep Exec Vice Chancellor - CWM","MMM124"]
["Deputy Chancellor","MME004"]
["Deputy Chief Med Officer,CWM","MMM509"]
["Deputy COO, CWM","MMM508"]
["Deputy Dir, Process Developmnt","MJP662"]
["Deputy Director","MJP558"]
["Deputy Director","MMM374"]
["Deputy Director & Clin&Reg Aff","MJP600"]
["Deputy Director Quality","MJP603"]
["Deputy Director, Manufacturing","MJP602"]
["Deputy Medical Director","MMM340"]
["Deputy Medical Director OCA","MH0251"]
["Designer/CAD Specialist I","ME0123"]
["Designer/CAD Specialist II","ME0119"]
["Development Engineer, Sr.","MC2037"]
["Device Engineer I","MC0073"]
["DevOps Engineer","MC0057"]
["Dietitian, Clinical Asst","MH0045"]
["Dietitian, Clinical I","MH0046"]
["DIO Coordinator","MB6220"]
["Dir Benefit Coord & Recovery","MMM401"]
["Dir Bus & Provider Netwk Devel","MMM507"]
["Dir HR Systems & Service Ctr","MMM215"]
["Dir Newborn Screening","MMM500"]
["Dir of Advancement","MB0319"]
["Dir of Clinical Tech & Busines","MB0287"]
["Dir of Employee Relations","MB1143"]
["Dir of Medical Management","MMM090"]
["Dir Purchasing & Accts Payable","MB1092"]
["Dir Qual Improv&Transformation","MMM086"]
["Dir, Academic Enrichment Prog","MB1180"]
["Dir, Admissions","MMM075"]
["Dir, Adolescent Services","MMM303"]
["Dir, ADV Liaison Program","MB2124"]
["Dir, ADV Operations","MMM079"]
["Dir, Advancement Relations","MB0107"]
["Dir, Alumni Rel/Spec Proj","MMM012"]
["Dir, Annual Giving","MB0008"]
["Dir, Auxiliary Services","MMM323"]
["Dir, Bus & Financial Admin","MB0335"]
["Dir, Business Applications Dev","MC2022"]
["Dir, Business Systems Delivery","MC0059"]
["Dir, Clin Analyt&Perf Measurem","MB0294"]
["Dir, Clinical Acct Management","MMM105"]
["Dir, Clinical Research Oper","MMM038"]
["Dir, Clinical Services DES","MB0268"]
["Dir, Clinical Svcs","MMM096"]
["Dir, Compensation","MB0066"]
["Dir, Corp&Found Relations","MB1176"]
["Dir, Country Laboratory Prog","MR5008"]
["Dir, Cross Cultural Health","MB1166"]
["Dir, Curr&Faculty Development","MB1218"]
["Dir, Customer Contact Center","MC0015"]
["Dir, CWM Organizational Devel","MMM312"]
["Dir, Data Management","MC2007"]
["Dir, DEO","MMM151"]
["Dir, Disability Tech Devel","MC0006"]
["Dir, Drug Utilization Program","MHCB36"]
["Dir, Early Inter Prog","MMA011"]
["Dir, Facilities Operations","MJP443"]
["Dir, Finance & Controller-CWM","MMM338"]
["Dir, Financial Aid","MMM036"]
["Dir, Hosted Systems","MC0023"]
["Dir, HR Comm Learn&Talent Devl","MB0200"]
["Dir, Human Resources","MMM395"]
["Dir, Immigration Services","MB1446"]
["Dir, Info Security & Complianc","MC0061"]
["Dir, Information Services","MC2003"]
["Dir, IRB Operations","MR2255"]
["Dir, LaborRel, Compliance&ISSO","MMM084"]
["Dir, Library","MMM024"]
["Dir, Machine Shop","MM1843"]
["Dir, Manufacturing","MJP473"]
["Dir, Manufacturing Support","MJP631"]
["Dir, Manufacturing VMC","MJP492"]
["Dir, Marketing Communications","MB2067"]
["Dir, MassHealth Quality Office","MMM389"]
["Dir, MuniMed Program","MMM326"]
["Dir, Network & Telecom Oper","MC2014"]
["Dir, of Property Services (DPS","MMM155"]
["Dir, Ofc Compliance & Review","MMM309"]
["Dir, Ofc of Health Policy&Tech","MB0230"]
["Dir, Operations - OGH","MMM121"]
["Dir, Operations CTSA","MMM035"]
["Dir, Operations DCS","MB0245"]
["Dir, Operations DES","MB0265"]
["Dir, Outreach","MB0019"]
["Dir, Pharmacy Operations","MMM104"]
["Dir, Planning & Property Mgt","MMM362"]
["Dir, Preclinical Development","MB0281"]
["Dir, Principal Claiming","MMM099"]
["Dir, Product Discovery","MJP649"]
["Dir, Productivity Services","MC0056"]
["Dir, Project Management","MC2079"]
["Dir, Public Safety","MMM028"]
["Dir, QARC Computing","MC0037"]
["Dir, Quality Assurance","MC2018"]
["Dir, Regional Programs","MB2078"]
["Dir, Regulatory Affairs","MJP472"]
["Dir, Research Computing","MC2118"]
["Dir, Revenue Operations","MMM314"]
["Dir, Specialty Programs","MMM396"]
["Dir, Talent Acquisition","MB0255"]
["Dir, Talent Management","MMM381"]
["Dir, Telecommunication","MC2005"]
["Dir, Trans & Dist Support Svcs","MB1065"]
["Dir, University Events","MMM021"]
["Dir, User Services","MC0019"]
["Dir, Veterans Program Office","MMM088"]
["Dir, Web Technologies","MC0043"]
["Dir,Alum&Parent Rel&Dev Events","MB0109"]
["Dir,Business Development","MJP607"]
["Dir,Educations Affairs","MMM115"]
["Dir,IACUC & IBC","MB2014"]
["Dir,Ofc Survey Research","MMM005"]
["Dir,Quality Improvement","MMM356"]
["Dir,Rehabilitation Services","MH0189"]
["Dir. Bus Sys & Prod Mgmt","MC2041"]
["Dir. Hospital Programs","MB2032"]
["Dir-Dental Services","MMM339"]
["Director","MMM023"]
["Director Administration","MJP534"]
["Director of Contracts","MB0323"]
["Director of Validation","MJP664"]
["Director Radiation Safety","MMM053"]
["Director, AHEC","MMM091"]
["Director, Anatomic Services","MB2008"]
["Director, Animal Medicine","MB0311"]
["Director, Business Operations","MMM097"]
["Director, Energy Resources","MMM307"]
["Director, IT Engineering","MC0038"]
["Director, QA","MJP460"]
["Director, Scrum Practice","MC0039"]
["Director, Space Planning & Man","MMM332"]
["Director, Technical Services","MJP530"]
["Director,cGxP IS","MJP608"]
["Director,Engineering","MJP455"]
["Director,Process Development","MJP555"]
["Director,Quality Control","MJP464"]
["Disability Assistant","MHCB14"]
["Disability Coordinator","MS0020"]
["Disability Coordinator II","MS0012"]
["Disability Reviewer","MB2072"]
["Disability Reviewer Asst","MPD160"]
["Disability Reviewer Asst","MPD16O"]
["Disability Reviewer II","MHCB12"]
["Disease Mgmt Nurse","MN0010"]
["Dispatch Operator","MT0073"]
["Diversity & Inclusion ProjSpec","MB0256"]
["Diversity Consultant","MB2661"]
["Diversity Coordinator","MS0049"]
["Document Coordinator I","MJP377"]
["Document Coordinator II","MJP509"]
["Document Coordinator III","MJP422"]
["Document Specialist I","MJP508"]
["Document Specialist II","MJP475"]
["Document Specialist II","MJP495"]
["Document Specialist III","MJP470"]
["Dosimetrist, Radiation","MH0071"]
["Driver","ME0076"]
["Edu & Clinical Svc Librarian","MB0212"]
["Education Program Specialist","MB0266"]
["Educational Asst.","MS0045"]
["EH&S Associate","ME0022"]
["EH&S Officer","MJP465"]
["EH&S Safety Officer","MB2024"]
["EH&S Specialist I","ME0094"]
["EH&S Specialist II","ME0024"]
["EH&S Specialist III","ME0033"]
["EH&S Technician","ME0013"]
["Electrical Project Manager, SR","MMM328"]
["Electrician","MT1115"]
["Electrician, Hv Maintenance","MT0002"]
["Electrician, Lead","MT1118"]
["Electrician, Lead High Voltage","MT1221"]
["Electronic Equipment Tech","MT2019"]
["Embalmer Technician","MR0037"]
["Employee Relations Consultant","MB2106"]
["Employment Specialist II","MB2098"]
["Eng Build Sys Oper","ME0039"]
["Eng I, Network Admin","MC2030"]
["Eng I, Sys Admin","MC2025"]
["Eng II, Network Admin","MC2029"]
["Eng II, Sys Admin","MC2024"]
["Eng, Construction Project","ME0007"]
["Eng,Energy and Sustainability","MB2664"]
["Engineer, Audio Visual Svcs","MC0030"]
["Engineer, Enterprise Support","MC2067"]
["Engineer, Pc Svs","MC2064"]
["Engineer,Sys Admin","MC2026"]
["Engineering Manager I","MJP629"]
["Engineering Manager II","MJP628"]
["Engineering Project Mgr Sr","MC0060"]
["Enterprise Client Solution Eng","MC0047"]
["Environmental Coord","MB1985"]
["Equip Maint Tech","MT2014"]
["Equip Maint Tech,Lead","MT2017"]
["Equip Operator/Grounds","MW1912"]
["Events Coordinator","MB0190"]
["Events Manager","MB0147"]
["Exec Asst I","MB1308"]
["Exec Asst II","MB1307"]
["Exec Asst to Exec Deputy","MB1303"]
["Exec Asst to the Chancellor","MB1306"]
["Exec Dep Chanc Provost & Dean","MMM002"]
["Exec Dir, Business Development","MMM132"]
["Exec Dir, Corp&Fndtn Relations","MMM009"]
["Exec Dir, Marketing","MB2115"]
["Exec Dir, Prog Develop Office","MMM306"]
["Exec Dir,Health & CrimJustProg","MMM201"]
["Exec Dir,Ofc of Tech Mgmt","MME019"]
["Exec Finance Administrator CWM","MMM089"]
["Exec VC Innovation & Bus Devel","MMM055"]
["Exec VC, Admin & Finance","MMM072"]
["Exec VC, Commonwealth Medicine","MMM076"]
["Exec Vice Chancellor, UMBL","MMM087"]
["ExecDir, Heal Sys Transformatn","MMM052"]
["Executive Assistant","MJP380"]
["Executive Dir, Advancement","MME014"]
["Executive Director","MMM341"]
["Executive Director","MMM355"]
["Executive Director CHCF, CWM","MMM501"]
["Executive Director Shriver Ctr","MMM502"]
["Facilities Engineer I","MJP652"]
["Facilities Engineer II","MJP659"]
["Facilities Engineer III","MJP660"]
["Facilities Engineer IV","MJP532"]
["Facilities Manager","MJP382"]
["Facilities Material Coord,Lead","ME0124"]
["Facilities Operations Mgr I","MJP597"]
["Facilities Operations Mgr II","MJP598"]
["Facilities Planner","ME0005"]
["Facilities Spec -Electrician","ME0026"]
["Facilities Spec-Mechanic","ME0034"]
["Family Medicine Resident","MH0013"]
["Finance Manager I","MJP625"]
["Financial & Data Analyst III","MF0023"]
["Financial Analyst I","MJP386"]
["Financial Analyst II","MJP550"]
["Financial Analyst III","MJP623"]
["Financial Analyst, Sr - FS/CWM","MF2024"]
["Financial and Data Analyst IV","MF0033"]
["Financial Assistant III","MF0015"]
["Financial Assistant IV","MF0016"]
["Financial Budget Analyst II","MF2010"]
["Financial Coordinator- Grants","MF2068"]
["Financial System Analyst III","MB0143"]
["Fitness Instructor","MH0009"]
["Food Server","MFS112"]
["Food Service Assistant","MFS110"]
["Food Service Manager","MFS103"]
["Foodservice Worker Cafeteria","MSFC03"]
["Fraud Investigator I","MB0131"]
["Fraud Investigator II","MB0132"]
["Freight Handler","MW4312"]
["Front End Developer, Sr","MC0040"]
["FWA Auditor","MB0263"]
["GME Programs Coordinator","MB0184"]
["Graduate Intern","MRH406"]
["Graduate Program Associate","MB2148"]
["Grant & Contract Specialist","MB1186"]
["Grant & Contract Specialist II","MF2008"]
["Grant Administrator I","MR2266"]
["Grant Writer","MB2666"]
["Graphic Design Specialist","MB0058"]
["Group Leader, Mailroom","MS0082"]
["GSBS Admissions Coordinator","MB0189"]
["Head Archivist","MB2085"]
["Head,Collection Department","MB2122"]
["Health Data Project Manager","MB0267"]
["Healthcare Data Analyst Sr","MC2097"]
["Hearings Associate","MHCB62"]
["Hearings Officer","MP0142"]
["High Perf Comput App Scientist","MC0041"]
["High School Intern","MRH404"]
["Hospital & Clinic Negotiator","MB0186"]
["Hostess","MFS102"]
["Housekeeper","MW2609"]
["Housekeeper, Head","MW2610"]
["Housekeeper, Lead","MW2613"]
["HR Associate I","MS0047"]
["HR Associate II","MS0048"]
["HR Business Partner I","MB2105"]
["HR Leave Manager","MB0093"]
["HR LR & Compliance Spec","MB0209"]
["HR Manager - Boston","MB0299"]
["HR Manager (UHS)","MB0254"]
["HR Programs Specialist","MB0213"]
["HR Records Clerk","MS0059"]
["HR Service Center Associate II","MS0044"]
["HR Systems Analyst","MB0206"]
["HRIS Mgr","MB1195"]
["HRIS Sec&Reporting Analyst","MB2049"]
["HRIS Systems Analyst","MB0288"]
["Human Resources Asst V","MA0045"]
["Human Resources Rep.","MB1047"]
["Immigration Specialist I","MB0208"]
["Immigration Specialist II","MB1455"]
["Informaticist, Iii","MC2047"]
["Informaticist,Sr.","MC2046"]
["Information Security Officer","MC0021"]
["Information Technology Intern","MC0062"]
["Inpatient Med Coding Speclst","MB0252"]
["Institutional Repos Librarian","MB0011"]
["Institutional Rsch Analyst I","MB0120"]
["Institutional Rsch Analyst II","MB0121"]
["Institutional Rsch Analyst III","MB0122"]
["Instructor","MF06XX"]
["Instrument/Control Technician","MT5020"]
["Insurance Program Coord I","MB0304"]
["Insurance Program Coord II","MHCB75"]
["Intake Assistant","MHCB72"]
["Intake Assistant, Lead","MHCB46"]
["Intake Coordinator","MB1979"]
["IS Program Administrator","MB1089"]
["IT Security Specialist Sr","MC0026"]
["IT Training Specialist II","MC2093"]
["Janitor","MW3108"]
["Janitor, Head","MW2710"]
["Kiosk Attendant","MFS106"]
["Lab Analyst I NENSP","MJP390"]
["Lab Analyst II - Molecular","MJP639"]
["Lab Analyst II NENSP","MJP391"]
["Lab Analyst III - Molecular","MJP638"]
["Lab Analyst III NENSP","MJP392"]
["Lab Analyst Team Lead","MJP634"]
["Lab Supervisor NENSP","MJP393"]
["Lab Tech I","MJP397"]
["Lab Tech II","MJP398"]
["Laboratory Staff Scientist","MJP690"]
["Lead Communications Dispatcher","MT0052"]
["Lead Disability Assistant","MHCB31"]
["Lead Disability Coordinator","MS0016"]
["Lead Research Lab Aide","MR0027"]
["Lead Safety SysTech-Sprinkler","ME0043"]
["Lead, Control Technician","MT3621"]
["Lead, Grounds and Waste","MW1914"]
["Lead, HR Service Center Assoc","MS0050"]
["Lead, Safety Sys Tech - Elect","ME0044"]
["Lead,Security","MT2117"]
["Leave of Absence Coordinator","MS0056"]
["Lecturer","MF24XX"]
["Legal Associate","MB1234"]
["LEND Fellow","GF111"]
["Librarian, Catalog","MB2073"]
["Librarian, Electronic Resource","MB0037"]
["Librarian, Info Literacy","MB1011"]
["Librarian, Reference Desk","MT0047"]
["Librarian, RschData&ScholComm","MB2031"]
["Librarian,Electronic Resources","MCI046"]
["Library Assistant I","MS0094"]
["Library Assistant II","MS0096"]
["Library Assistant Per Diem","MPD048"]
["Library Asst 1A","MA0016"]
["Library Clerk","MS0026"]
["Library Fellow","MB0086"]
["Licensing Associate","MB0145"]
["Licensing Officer","MB1305"]
["Licensing/Paralegal Asst","MB1191"]
["Lock & Hardware Spec, Lead","MT4118"]
["Lock & Hardware Spec, Sr.","MW4116"]
["LPN III","MN0027"]
["Machine Shop Assistant","ME0120"]
["Maintenance Pipefitter","MT2015"]
["Maintenance Technician","MT2020"]
["Major Gift Officer","MB1020"]
["Malware Protection Specialist","MC0051"]
["Mammography Technician","MN0028"]
["Manager","MB2125"]
["Manager - Financial Systems","MF2051"]
["Manager Bldg. & Equip.Maint","ME0016"]
["Manager II","MB1999"]
["Manager, Advancement Services","MB0139"]
["Manager, Contract Compliance","MB2011"]
["Manager, Country","MB0298"]
["Manager, Operations","MHCB17"]
["Manager, Patents and Contract","MMM102"]
["Manager, Productivity Services","MC0022"]
["Manager, Provider Network","MHCB06"]
["Manager,HR","MB1070"]
["Manager,Mechanical Facilities","MMM214"]
["Managing Director","MMM358"]
["Managing Director, State Lab","MMM041"]
["Managing News Media Producer","MB1181"]
["Managing Senior Associate","MB0275"]
["Manufacturing Assoc III","MJP400"]
["Manufacturing Assoc. I","MJP399"]
["Manufacturing Assoc. II","MJP401"]
["Manufacturing Assoc. IV","MJP402"]
["Manufacturing Manager I","MJP403"]
["Manufacturing Manager II","MJP404"]
["Manufacturing Tech I","MJP406"]
["Manufacturing Tech II","MJP407"]
["Marketing Communications Mgr","MB2022"]
["Marketing Paralegal Ip","MB1451"]
["Marketing Production Coord","MB2086"]
["Marketing Specialist","MB2128"]
["Mason/Plastering Specialist","MT1114"]
["Materials Handler I","MJP408"]
["Materials Handler II","MJP491"]
["Materials Handler III","MJP494"]
["MBL Administrative Manager","MJP646"]
["Mech Maint Tech I","MW7709"]
["Mech Maint Tech II","MT2018"]
["Mech Maint Tech, Asst","MT2012"]
["Mech Maint Tech, Lead","MT2118"]
["Mechanic","MHB409"]
["Mechanical Handyman I","MW3409"]
["Mechanical Handyman Ii","MW3412"]
["Med Dir MH Pmt & Care Del Inno","MH0253"]
["Medical Consultant","MPD150"]
["Medical Director","MH0246"]
["Medical Director DCF","MH0252"]
["Medical Mgmt Administrator","MB0312"]
["Medical Resident Orientation","MF0500"]
["Medical Technician I","MR2256"]
["Medicare Appeals Coordinator","MBR031"]
["Medicare Appeals Specialist","MBR030"]
["Medicare Prem Asst Prog Coord","MHCB79"]
["Metrology Manager I","MJP469"]
["Metrology Manager II","MJP510"]
["Mfg Compliance Associate I","MJP562"]
["Mfg Compliance Associate II","MJP563"]
["Mfg Compliance Manager I","MJP513"]
["Mfg Compliance Manager II","MJP630"]
["Mfg Compliance Specialist I","MJP512"]
["Mfg Compliance Specialist II","MJP511"]
["Mfg Compliance Specialist III","MJP632"]
["Mgr Business Operations","MB0278"]
["Mgr Clinical Review Operations","MB0237"]
["Mgr Communication Technologies","MC2072"]
["Mgr Work Control","MB2001"]
["Mgr, Academic Technology","MC0065"]
["Mgr, Accounting Cvip","MB1231"]
["Mgr, Accounts Payable","MF2021"]
["Mgr, ADV Comm & Stewardship","MB0179"]
["Mgr, Animal Care & Facilities","MB0161"]
["Mgr, Animal Medicine","MR0031"]
["Mgr, Benefits","MB1301"]
["Mgr, Blood Safety","MR5005"]
["Mgr, Budget","MB0163"]
["Mgr, Bus & Svc Delivery Dvlpmt","MB0334"]
["Mgr, Business Partner Services","MB0191"]
["Mgr, Case","MP2067"]
["Mgr, Claims","MHCB50"]
["Mgr, Clinical Services Ops","MB0337"]
["Mgr, Community&Gov't Relations","MB0174"]
["Mgr, Compliance","MB0205"]
["Mgr, Conf Facilities","MB1447"]
["Mgr, Curricular Innovation","MC0045"]
["Mgr, Data Sciences & Technolog","MC0071"]
["Mgr, DevOps","MC0031"]
["Mgr, Donor Marketing","MB1023"]
["Mgr, Donor Relations","MB2077"]
["Mgr, Drug Abuse Lab","MMA008"]
["Mgr, Enterprise Support","MC2016"]
["Mgr, Fin. Planning & Anal","MB0074"]
["Mgr, Hosted Systems","MC0049"]
["Mgr, HR Service Center","MB0326"]
["Mgr, Info Security&Compliance","MC2085"]
["Mgr, Intell Prop Docket","MB1155"]
["Mgr, IT Engagement Management","MC0064"]
["Mgr, Laboratory Technician","MR5006"]
["Mgr, Learning & Development","MB1064"]
["Mgr, Lib Edu & Clinical Svcs","MB0034"]
["Mgr, Library Info Technology","MB0036"]
["Mgr, Maintenance","MB0151"]
["Mgr, Mech Proj, Sr.","MMM202"]
["Mgr, NatPubHlth Coord Office","MB0305"]
["Mgr, Payroll&Accounts Payable","MB0315"]
["Mgr, Program Compliance","MB2065"]
["Mgr, Program Compliance","MHCB45"]
["Mgr, Quality Assurance","MC0063"]
["Mgr, Research & Scholarly Comm","MB0035"]
["Mgr, Retail Srvs","MMM051"]
["Mgr, Revenue Operations","MBR045"]
["Mgr, Software Engineering","MC0068"]
["Mgr, Space Mgmt & Planning","MC0067"]
["Mgr, Sponsorship & Recruitment","MB0129"]
["Mgr, Student Loan","MP2055"]
["Mgr, Technology","MC0123"]
["Mgr, Telecommunications Svcs","MC0070"]
["Mgr, Trial Support and Edu","MB0341"]
["Mgr, Veterinary Services","MB2118"]
["Mgr,Case Comm Med","MHCB69"]
["Mgr,Construction Project","MB2119"]
["Mgr,Grant Acctng AR&Fin Analys","MF0024"]
["Mgr,LibraryFellows&SvcPoint","MB0085"]
["Mgr,Maintenance-Jp","MB0112"]
["Mgr,Parking Svcs","MB0044"]
["Mgr,Research Operations","MR0034"]
["Mgr,Veterinary Svcs&Trng","MB1440"]
["Mgr. Data Center Operations","MC2094"]
["Mgr. Data Entry","MJP389"]
["Mgr.Transportation/Distrib","MB1066"]
["Mng Editor, Pub & Spec Proj","MB1051"]
["Molecular Technologist Asst","MR5001"]
["Molecular Technologist I","MR5002"]
["Molecular Technologist II","MR5003"]
["Molecular Technologist III","MR5004"]
["Multimedia Content Producer","MB0052"]
["National Mkt Development Dir","MB2151"]
["Network Administrator","MC0066"]
["News Media Producer","MB0014"]
["Non UMass Graduate Student","GR101"]
["Non-Employees","MNON90"]
["Nurse Clinician","MNNN04"]
["Nurse Manager, Care Management","MN0002"]
["Nurse Practitioner","MH0016"]
["Nurse Practitioner","MJP547"]
["Nurse Practitioner","MNAN03"]
["Nurse Rev II-Case Mgt","MN0011"]
["Nurse Rev II-Eligibility","MN0042"]
["Nurse Reviewer","MN0041"]
["Nurse, Clinician","MN0008"]
["Nurse, Manager I","MMN006"]
["Nurse, Manager Ii","MMN005"]
["Nurse, Practitioner","MN0003"]
["Nurse, Professional I","MN4814"]
["Nurse, Staff I, Offsite","MN3817"]
["Nurse, Staff Per Diem","MPD200"]
["Nursing Assistant","MDC001"]
["Nutritionist Ii","MH0172"]
["OBH Program Coordinator","MB0309"]
["OBH Program Manager","MB0310"]
["Observer","MRH407"]
["Occupational Therapist","MH0241"]
["Operations and Contract Coord","MS0052"]
["Operations and Training Spec.","MB2010"]
["Operations Coordinator CRU","MS0037"]
["Operations Supervisor","MB0228"]
["Optometrist, Bos","MPDB10"]
["Org Development Spec, DCS","MB0138"]
["Outpatient Med Coding Spclst","MB0251"]
["Outreach Coordinator","MB2002"]
["Outreach Manager","MHCB05"]
["Painting Specialist","MT2711"]
["Painting Specialist, Sr","MT2716"]
["Parking Attendant","MW8308"]
["Parking Attendant, Sr","MW1911"]
["Parking Enforcement Asst","MW1910"]
["Parking/Access Control Lead","MW8307"]
["Pathology Assistant","MR0046"]
["Patient Coordinator","MB0211"]
["Patient Instr Ii Pd","MPD181"]
["Payroll Manager","MB0073"]
["Payroll Specialist","MS0079"]
["Payroll Supervisor","MF2052"]
["PC Svs Engineer, Sr","MC2063"]
["Peer Mentor","MS0027"]
["Pharmacist Ii","MPPN03"]
["Pharmacy Associate I","MB2107"]
["Pharmacy Associate II","MB2095"]
["Pharmacy Associate III","MB2096"]
["Pharmacy Billing Specialist","MB0280"]
["Pharmacy Contract Program Mgr","MB2088"]
["Pharmacy Manager","MB0203"]
["Pharmacy Operations Manager","MB0314"]
["Photographer, Biomedical","MB0045"]
["Physical Therapist","MH0240"]
["Physical Therapist","MP0004"]
["Physician","MP0008"]
["Physician (Dual)","MB1299"]
["Physician Advisor","MH2750"]
["Physician Advisor Per-Diem","MPD151"]
["Physician, Bos","MPDB08"]
["Physician's Assistant","MH0245"]
["Plumber","MT2815"]
["Plumber - Jp","MT2816"]
["Plumber, Lead","MT2818"]
["Police Lieutenant","MB6216"]
["Police Officer","MW6913"]
["Police Sergeant","MW3715"]
["Policy Analyst","MB0188"]
["Policy Analyst II","MB1994"]
["Policy Analyst, Sr","MB1995"]
["POPS Technical Analyst","MB2087"]
["Post Doc Assoc","MF19XX"]
["Post Doc Fellow/Instr.","MF35XX"]
["Post Doc Scientist I","MJP656"]
["Post Doc Scientist II","MJP657"]
["Post Grad Associate","MH0070"]
["Power Plant, Lead","MT3520"]
["PPR Assistant","MBR016"]
["PPR Coordinator","MBR042"]
["PPR Manager","MB0272"]
["PPR Specialist","MBR017"]
["PPR Supervisor","MBR043"]
["Practice/Health Sys Transf Spc","MB0028"]
["Preventative Maint Tech III","MJP468"]
["Preventative Maint Tech IV","MB0215"]
["Preventitive Maint. Tech I","MJP529"]
["Preventive Maint. Tech II","MJP542"]
["Preventive Maint. Tech IV","MJP543"]
["Prin Data Security&Compli Spec","MC0069"]
["Principal CHLE","MMM098"]
["Principal Gift Officer","MMM365"]
["Principal Healthcare Analyst","MB0133"]
["Principal Software Engineer","MC0074"]
["Process Dev Assoc I","MJP415"]
["Process Development Assoc II","MJP416"]
["Process Development Assoc. III","MJP414"]
["Process Engineer I","MJP417"]
["Process Engineer II","MJP418"]
["Process Engineer III","MJP419"]
["Procurement & Tech Writing Mgr","MB0282"]
["Product Owner Associate","MC0046"]
["Product Owner II","MC0033"]
["Professor","MF11XX"]
["Prog Dir, Pharmacy","MMM081"]
["Prog Monitor & Trainer","MB1441"]
["Program & Credentialing Coord","MB0336"]
["Program Administrator","MB1090"]
["Program Analyst - MHE","MB0327"]
["Program Analyst II - MHE","MB0329"]
["Program Auditor","MB0135"]
["Program Auditor-Analyst","MB0067"]
["Program Coordinator","MB0250"]
["Program Coordinator","MJP546"]
["Program Coordinator CHCF","MB0303"]
["Program Data Specialist","MHCB54"]
["Program Development Associate","MB0176"]
["Program Development, Sr","MB0177"]
["Program Director","MMM331"]
["Program Director","MMM344"]
["Program Director - OMCR","MMM137"]
["Program Director I","MH0079"]
["Program Director, ASO DES","MB0271"]
["Program Event Coordinator","MB0325"]
["Program Manager","MH0012"]
["Program Manager - EAP","MHCB57"]
["Program Mgr, AHEC","MMM007"]
["Program Mgr, Child Protection","MH0017"]
["Program Mgr, Training and Eval","MMM092"]
["Program Mgr-DES","MB0224"]
["Project Analyst","MB0284"]
["Project Assistant","MS0087"]
["Project Assistant II","MS0088"]
["Project Associate","MB1010"]
["Project Coordinator","MB0070"]
["Project Coordinator","MB0072"]
["Project Coordinator II","MB0283"]
["Project Dir Pharmancy","MB0063"]
["Project Director","MB1202"]
["Project Director I","MB0285"]
["Project Director II","MB0167"]
["Project Director, RN","MMM037"]
["Project Director, Sr","MB0166"]
["Project Manager","MB2059"]
["Project Manager","MC2021"]
["Project Manager","MJP551"]
["Project Manager - CCTS","MB0210"]
["Project Manager I","MJP554"]
["Project Manager Ii","MC2020"]
["Project Manager II","MJP661"]
["Project Manager III","MJP642"]
["Project Manager, Sr","MC2019"]
["Project Manager,Senior","MB1993"]
["Project Manager/Space Planning","ME0019"]
["Property Manager","MMM335"]
["Provider Mgmt Coordinator","MHCB16"]
["Provider Network Specialist","MB0295"]
["Provider Relations Coord","MHCB26"]
["Psychologist Ii","MH0014"]
["Psychologist Intern","MH0229"]
["Psychology Resident","MH0081"]
["Public Safety Asst","MA0048"]
["Puchasing Associate II","MJP618"]
["Purchasing Agent I","MB0006"]
["Purchasing Agent III","MB2112"]
["Purchasing Associate I","MJP423"]
["Purchasing Associate III","MJP619"]
["Q A Analyst II","MC0095"]
["Q A Analyst III","MC0096"]
["Q A Analyst, Sr","MC2084"]
["Q A Consultant","MH2751"]
["Q C Manager II","MJP434"]
["QA Compliance Specialist I","MJP424"]
["QA Compliance Specialist III","MJP452"]
["QA Compliance Specialist IV","MJP453"]
["QA ComplianceSpecialist II","MJP425"]
["QARC Systems Support Spec","MC0020"]
["QC Analyst I","MJP428"]
["QC Analyst I, Microbiology","MJP640"]
["QC Analyst II","MJP429"]
["QC Analyst II, Microbiology","MJP641"]
["QC Analyst III","MJP466"]
["QC Analyst IV","MJP633"]
["QC Manager I","MJP432"]
["QC Scientist I","MJP669"]
["QC Scientist II","MJP670"]
["QC Visual Inspec Spec III","MJP564"]
["QC Visual Inspection Spec I","MJP430"]
["QC Visual Inspection Spec II","MJP431"]
["QC Visual Inspectn Spec IV","MJP526"]
["Quality Improvement Mgr,CCTS","MB0128"]
["Quality Manager","MB0065"]
["Quality Manager I","MJP426"]
["Quality Manager II","MJP427"]
["Quality Manager III","MJP557"]
["R&D Associate I","MJP436"]
["R&D Associate II","MJP435"]
["R&D Associate III","MJP539"]
["R&D Associate IV","MJP627"]
["R&D Scientist I","MJP437"]
["R&D Scientist II","MJP438"]
["R&D Scientist III","MJP480"]
["Rad Safety Specialist II","ME0004"]
["Receptionist I","MS0024"]
["Recovery Specialist","MB0136"]
["Recruiting Manager","MB0234"]
["Referral Mgt Nurse","MN0040"]
["Refrig & Ac Mechanic","MT3521"]
["Refrig & Ac Mechanic, Lead","MT3118"]
["Refrig & Ac Mechanic, Sr","MT3516"]
["Reg Affairs Manager I","MJP439"]
["Reg Affairs Manager II","MJP440"]
["Reg Affairs Specialist I","MJP442"]
["Reg Affairs Specialist II","MJP441"]
["Reg Affairs Specialist III","MJP506"]
["Reg Nurse, Bos","MPDB06"]
["Regional Operations Director","MB0274"]
["Registrar","MB1990"]
["Regulatory Coordinator","MB0075"]
["Regulatory Spec","MB0015"]
["ResData & Schol Comm Librarian","MB0332"]
["Research & Data Coordinator","MB0155"]
["Research Associate","MR2240"]
["Research Associate","MR2241"]
["Research Associate","MR2242"]
["Research Associate","MR2243"]
["Research Associate Dry","MR2251"]
["Research Associate I","MR0008"]
["Research Associate I Dry","MR2252"]
["Research Associate Ii","MR0009"]
["Research Associate II Dry","MR2253"]
["Research Compliance Specialist","MB0320"]
["Research Coordinator I","MR0012"]
["Research Coordinator Ii","MR0013"]
["Research Dietitian","MH0047"]
["Research Engineer I","MR0018"]
["Research Engineer Ii","MR0019"]
["Research Engineer Iv","MR0021"]
["Research Fellow","MF22XX"]
["Research Lab Aide Ii","MR0002"]
["Research Lab Aide Iii","MR0003"]
["Research Lab Tech I","MR0004"]
["Research Lab Tech I Dry","MR2250"]
["Research Lab Tech II","MR0006"]
["Research Nurse Coord I","MR0015"]
["Research Nurse Coord Ii","MR0016"]
["Research Nurse Manager","MMM393"]
["Research Project Director","MR0014"]
["Research Psychologist","MR0041"]
["Research Scientist, Sr","MR0010"]
["Research Specialist","MR0061"]
["Research Technician Assistant","MR0023"]
["Residency Program Admin I","MA0044"]
["Residency Program Admin II","MMM080"]
["Resident Pgy - 1","MF0501"]
["Resident Pgy - 2","MF0502"]
["Resident Pgy - 3","MF0503"]
["Resident Pgy - 4","MF0504"]
["Resident Pgy - 5","MF0505"]
["Resident Pgy - 6","MF0506"]
["Resident Pgy - 7","MF0507"]
["Resident Pgy - 8","MF0508"]
["Resident Pharmacy Practice","MP2087"]
["Respiratory Therapist","MH0250"]
["Safety System Tech Assistant","ME0049"]
["Scientific Administrator","MJP549"]
["Secretary I","MS0018"]
["Secretary II","MS0015"]
["Secretary to the Chair","MS0095"]
["Secretary, Administrative I","MS0011"]
["Security Administration Spec","MC0036"]
["Security Engineer, Sr","MC0035"]
["Senior Associate","MB2062"]
["Senior Associate II","MB2063"]
["Senior Associate OCR","MB0247"]
["Senior Bio-Safety Officer","MB2015"]
["Senior Clinical Analyst","MB1187"]
["Senior Consultant","MB0185"]
["Senior Data Scientist","MC0075"]
["Senior Director of Admissions","MB2051"]
["Senior Research Dosimetrist","MH0072"]
["Senior Research Nurse","MR0056"]
["Senior Scientific Writer","MR0032"]
["Senior Sourcing Specialist","MB0331"]
["Senior Web Designer","MC0027"]
["SEO/UX Analyst","MC0054"]
["Service Center Mail Clerk","MS0097"]
["Shipping Manager II","MJP446"]
["Simulation Technician","MB0240"]
["Skilled Laborer I","MW4208"]
["Social Media Specialist","MB0290"]
["Social Worker Consultant","MB2663"]
["Social Worker I","MP2037"]
["Social Worker Ii","MP2031"]
["Software Engineer","MC0079"]
["Software Engineer Associate","MC0080"]
["Software Prod Solutions Archit","MC0025"]
["Space Utilization Specialist","MB0023"]
["Spec I, Specialty Programs","MB0225"]
["Spec II, Casualty Recovery","MB1159"]
["Spec, Advancement","MB2076"]
["Spec, Clinical Data Iii-Jp","MJP362"]
["Spec, Educational II","MB1988"]
["Spec, Research Video Prod I","MR0038"]
["Spec, Research Video Prod II","MR0029"]
["Spec,Protocol","MB0010"]
["Spec,Research Data II","MB0149"]
["Spec,Veterinary Surgical","MB1174"]
["Special Assistant to the Chan.","MB2131"]
["Special Events Coordinator","MB0118"]
["Special Gifts Officer","MB0321"]
["Specialist II, Estate Recovery","MB1188"]
["Specialist, Access Control","MA0034"]
["Specialist, Course Development","MB0110"]
["Specialist, Data Support","MB1232"]
["Specialist, Education","MB0049"]
["Specialist, Educational Iii","MB0103"]
["Specialist, Research Data","MB0154"]
["Speech & Language Consultant","MH0242"]
["Speech Therapist","MP0009"]
["Sponsored Progs Admin I","MB2162"]
["Sponsored Progs Admin Sr.","MB2164"]
["Sponsored Progs Admini II","MB2163"]
["Sr Academic Administrator","MB0126"]
["Sr Admin Asst to Exec","MS0098"]
["Sr Analyst, CHPR","MB1182"]
["Sr Assoc Dean Edu Affairs","MMM133"]
["Sr Assoc Dean for Edu Affairs","MMM110"]
["Sr Assoc Medical Director","MMM016"]
["Sr Associate Health Policy","MB0249"]
["Sr Clin Rsch Data & App Spec","MC0058"]
["Sr COI & Compliance Analyst","MB0328"]
["Sr Compensation Consultant","MB0243"]
["Sr Consultant Health Law & Pol","MB0248"]
["Sr Consultant II - Hlth Law","MB0292"]
["Sr Contracts Specialist","MB0296"]
["Sr Credentialing Specialist","MB0233"]
["Sr Devel Operations Engineer","MC0044"]
["Sr Digital Strategist","MC0072"]
["Sr Dir","MMM388"]
["Sr Dir Business Administration","MMM514"]
["Sr Dir Process Development","MJP617"]
["Sr Dir, Business Development","MJP658"]
["Sr Dir, CHCF Data Operations","MMM044"]
["Sr Dir, Community & Govt Relat","MB0062"]
["Sr Dir, Contract Manufacturing","MJP637"]
["Sr Dir, Employee Relations","MB1144"]
["Sr Dir, Envir Health & Safety","MB2018"]
["Sr Dir, Finance & Controller","MMM127"]
["Sr Dir, Finance & Operations","MMM403"]
["Sr Dir, New Bus & Fin Growth","MMM093"]
["Sr Dir, Post Award Adm&Complia","MMM371"]
["Sr Dir, Product Discovery","MJP644"]
["Sr Dir, Q A","MMM380"]
["Sr Dir,Perf Improvement","MB2033"]
["Sr Director of Finance","MMM372"]
["Sr Director of Operations","MMM022"]
["Sr Dir-Facilities Eng & Con","MMM322"]
["Sr Eng, Network Admin","MC2028"]
["Sr Eng, Sys Admin","MC2023"]
["Sr Ext Communications Producer","MB0261"]
["Sr Facilities Spec- Plumber","ME0040"]
["Sr Facilities Spec-Mechanic","ME0021"]
["Sr Facilities Spec-Waste Water","ME0028"]
["Sr Federal Revenue Analyst","MB0089"]
["Sr Hazardous Waste Specialist","ME0002"]
["Sr Healthcare Data Analyst","MB0192"]
["Sr HR Associate","MB0202"]
["Sr HR Associate - Service Ctr","MB0308"]
["Sr HR Manager","MMM357"]
["Sr HR Mktg Communications Spec","MB2142"]
["Sr Instructional Design Cons","MB0293"]
["Sr Labor Strategy Consultant","MB0338"]
["Sr Manager, Revenue Operations","MBR046"]
["Sr Market Research Analyst","MB0222"]
["Sr Marketing Specialist","MB2136"]
["Sr Media Marketing Mgr","MB2034"]
["Sr Mgr Appeals & Reg Complianc","MB0313"]
["Sr Mgr Perf Improvmt & Trng","MB0137"]
["Sr Mgr, COI Compliance (UMMS)","MB0317"]
["Sr Mgr, Construction Project.","MMM043"]
["Sr Mgr, Diversity & Equal Opp","MB0195"]
["Sr Mgr, Programs&Facility Svcs","MF0031"]
["Sr Mgr, Reimbursement Oper","MB2040"]
["Sr Mgr, Strategic Planning","MB2043"]
["Sr Policy Analyst - Health Law","MB0064"]
["Sr Principal Gift Officer","MMM122"]
["Sr Product Owner","MC0034"]
["Sr Program Analyst - MHE","MB0330"]
["Sr Program Dir Data Analytics","MB0229"]
["Sr Program Officer","MR0036"]
["Sr Proj Coord","MJP570"]
["Sr Proj Dir,  Pmt&Care Del Inn","MB0301"]
["Sr Proj Dir, Research & Eval","MB0231"]
["Sr Project Director, Prgm Dev","MB0318"]
["Sr Rsch Data & Applic Spec","MC0017"]
["Sr Software Engineer","MC0078"]
["Sr Supv Animal Care&Facilities","MB0114"]
["Sr Talent Acq Partner/Gen'l","MB2099"]
["Sr Talent Associate","MB0204"]
["Sr Talent Consultant","MB0198"]
["Sr Talent Specialist","MB0197"]
["Sr Therapist, Behavior","MH0186"]
["Sr Video Producer","MB0032"]
["Sr Web Dev'l & Creative Mgr","MB2021"]
["Sr, Major Gifts Officer","MB1461"]
["Sr,Engineer","MB2126"]
["Sr. Consultant, Bus. Dev.","MB2069"]
["Sr. Dir, DCS","MB1225"]
["Sr. Dir, DES","MB1098"]
["Sr. Director, Administration","MJP552"]
["Sr. Director, Compliance","MMM135"]
["Sr. Director, Facilties","MMM347"]
["Sr. Director, Quality","MJP665"]
["Sr. Director,cGxP IS","MJP609"]
["Sr. Director,Manufacturing","MJP463"]
["Sr. Director,QC","MJP485"]
["Sr. Employee Relations Consult","MB0297"]
["Sr. Medical Records Clerk","MP0046"]
["Sr. Policy Analyst","MB2066"]
["Sr. Privacy Officer (UMMS)","MMM103"]
["Sr. Protocol Specialist","MB0343"]
["Sr. Vendor Relations Assoc","MJP595"]
["Sr.Dir,Research & Evaluation","MMM354"]
["Sr.Employment Manager","MB2141"]
["Sr.Manager Facilities","ME0012"]
["Sr.Time Labor Payroll Special","MS0036"]
["SSP Business Analyst","MB0207"]
["SSP Financial Coordinator","MF0012"]
["SSP Program Coordinator","MB0239"]
["Statistician I","MB6842"]
["Statistician Ii","MB6844"]
["Stewardship Officer","MB1208"]
["Strategic Marketing Manager","MB2023"]
["Student Board of Trustee","STBT01"]
["Supervisor, Lab Operations","MR0052"]
["Supervisor, Nurse","MN5016"]
["Supply Center Inventory Coord","ME0031"]
["Supply Chain Manager I","MJP566"]
["Supply Chain Manager II","MJP567"]
["Supply Coord Ii","ME0030"]
["Supv, Animal Care Facilities","MB0160"]
["Supv, Animal Surgery","MB0159"]
["Supv, Care Coordination","MB0242"]
["Supv, Data Entry/Cust Svs-Jp","MJP374"]
["Supv, Ebs","ME0048"]
["Supv, Eligibility Operations","MB0217"]
["Supv, HR Service Center","MB1465"]
["Supv, Lead Residential","MP2090"]
["Supv, Lobby","ME0096"]
["Supv, Mailroom","ME0093"]
["Supv, Medical Coding","MB0253"]
["Supv, Medicare Appeals Program","MBR032"]
["Supv, Molecular Technologist","MR5007"]
["Supv, Operations - Call Center","MHCB19"]
["Supv, Operations - CPS","MHCB67"]
["Supv, Physical Asset Mgmt","MF0051"]
["Supv, QC Analyst III-Micro","MJP645"]
["Supv, Receiving","ME0075"]
["Supv, Residential Asst.","MP2106"]
["Supv, Telephone","MS0031"]
["Supv, Veterinary Svs","MB1449"]
["Survey Rsrch Interviewer I","MS0039"]
["Survey Rsrch Interviewer II","MS0040"]
["Systems Programmer","MC0052"]
["Systems Programmer II","MC0053"]
["Talent Associate","MB0123"]
["Talent Sourcer","MB0141"]
["Talent Specialist I","MB0279"]
["Talent Specialist II","MB0199"]
["Teaching Associate","MB2166"]
["Team Lead - Claiming Ops","MB0339"]
["Team Lead CHCF Program","MB0300"]
["Team Leader,Transition Mgr","MHCB68"]
["Tech I, Enterprise Support","MC2070"]
["Tech II, Enterprise Support","MC2069"]
["Tech, Equipment Inven Sr.","ME0097"]
["Technical Writer II","MJP458"]
["Technician, Animal Care","MR2258"]
["Technician, Animal Care II","MR2259"]
["Technician, Animal Care III","MR2260"]
["Technician, Animal Care IV","MR2261"]
["Technician, Equip Inventory","ME0064"]
["Technician, Pc Svs Ii","MC2065"]
["Technician, Rad Safety","ME0061"]
["Technician, Rad Safety II","ME0062"]
["Technician, Safety Systems","ME0118"]
["Technician, Sr Enterprise Supp","MC2068"]
["Technician, Support II","MR0024"]
["Technician, Telecom","MP0188"]
["Technician, Telecom Pd","MPD188"]
["Technician, Waste Management","MT0913"]
["Technician,Audio Visual II","MB0090"]
["Technologist, Instruct Ii","MC2051"]
["Technologist, Instruct Iii","MC2050"]
["Technologist, Instruct Sr.","MC2049"]
["Technologist, Radiologic II","MH0244"]
["Technologist, Radiology","MHCB89"]
["Technologist,Instruct I","MC2090"]
["Telephone Operator","MS0035"]
["Tenure-Tenure Track Faculty","TENFAC"]
["Test Automation Engineer","MC0029"]
["Therapist, Developmental","MH0026"]
["Therapist, Occ I Psy","MH0168"]
["Therapist, Occ Ii","MH0069"]
["Therapist, Respiratory II","MSKR01"]
["Tobacco Cessation Prog Mgr","MB1168"]
["Trainer, HR Comm LTD","MB0289"]
["Trainer/Coord.","MB1190"]
["Training Coordinator","MB2068"]
["Trauma Educator","MP2030"]
["UMass Graduate Student","GR100"]
["UMass Student","ST9999"]
["UME Program Administrator","MB0218"]
["Undefined Position","Z99999"]
["Undergraduate Intern","MRH405"]
["Unpaid Graduate Intern","MRH411"]
["Unpaid High School Intern","MRH409"]
["Unpaid Research Trainee","MRH408"]
["Unpaid Undergraduate Intern","MRH410"]
["Validation Engineer I","MJP447"]
["Validation Engineer II","MJP448"]
["Validation Engineer IV","MJP527"]
["Validation Manager II","MJP477"]
["Validation Specialist I","MJP450"]
["Validation Specialist II","MJP503"]
["Validation Specialist III","MJP504"]
["Validation Specialist IV","MJP528"]
["VC Govt & Community Relations","MME009"]
["VC, Administration & Finance","MMM109"]
["VC, Advancement","MME005"]
["VC, Diversity & Inclusion","MMM047"]
["Vectored Therapeutic Scientist","MJP691"]
["Vendor","MRH412"]
["Vendor Relations Assoc I","MJP593"]
["Vendor Relations Assoc II","MJP594"]
["Veterinary Technician","MR2267"]
["Veterinary Technician I","MR2262"]
["Veterinary Technician II","MR2263"]
["Veterinary Technician III","MR2264"]
["Vice Chancellor & COO UMMS/CWM","MMM363"]
["Vice Chancellor Communications","MME032"]
["Vice Provost Faculty Affairs","MMM118"]
["Vice Provost for Research","MMM111"]
["Vice Provost, School Services","MMM503"]
["Visiting Faculty","MF12XX"]
["Visiting Scholar","MF05XX"]
["VMC Associate I","MJP653"]
["VMC Associate II","MJP654"]
["VMC Associate III","MJP655"]
["Volunteer","MVOL90"]
["Waiver Ops Mgr.","MB0082"]
["Waiver Program Specialist","MB0246"]
["Web Developer Ii","MC2054"]
["Web Developer Iii","MC2053"]
["Web Developer, Sr.","MC2052"]
["Writer, Scientific","MR0055"]
["NEW TITLE","XXXXXX"]

{"sheet":"Admissions","index":2,"n_rows":219,"n_cols":1,"rows_kept":219,"cut":false,"hidden":true,"merged":[]}
["Access Control"]
["Access Control - Lobbies"]
["Administration & Finance"]
["Admissions"]
["Adv-Advancement Services"]
["Adv-Alumni & Parent Relations"]
["Adv-Annual Funds"]
["Adv-Cancer Walk"]
["Adv-Central Admin/Operations"]
["Adv-Communication & Stewardshp"]
["Adv-Corp/Foundation Relatns"]
["Adv-Events"]
["Adv-Executive Office"]
["Adv-Grateful Patient Program"]
["Adv-Individual Giving"]
["Adv-UMMMC Giving"]
["Anesthesiology"]
["Animal Medicine"]
["ASC-Lab Glass Cleaning Svc"]
["ASG"]
["Benefits Coord. Consult."]
["Biochemistry & Molecular Pharm"]
["Bioinformatics & Integratv Bio"]
["Bookstore"]
["Cancer Research Office (CRO)"]
["CANDO"]
["Cardiovascular Medicine"]
["Cell Biology"]
["Center for Clinical Research"]
["Certified Patient Instruct."]
["Chancellor"]
["CHCF - Administration"]
["CHCF - Financial Compliance"]
["CHCF Financial Management"]
["CHCF Support"]
["Client Relations"]
["Clinical Informatics"]
["Communications"]
["Continuing Care Units"]
["Continuing Education"]
["Courier Service"]
["CPS - Administration"]
["CPS-HSNO"]
["Ctr for Health Law & Economics"]
["Ctr For Health Policy & Rsch"]
["CWM Chief Operating Officer"]
["CWM Finance"]
["CWM Marketing Analytics"]
["Data Management Services"]
["DC Commonwealth Medicine"]
["DC Commonwealth Med-Ops"]
["Dean - Medical School"]
["Dermatology"]
["Diabetes"]
["Disability & Community Service"]
["Disability Evaluation Services"]
["Diversity & Inclusion"]
["Drug Utilization Review"]
["Drugs Of Abuse Lab"]
["EA-Ctr for Acad Achievement"]
["EA-Medical Simulation"]
["EA-Research & Evaluation"]
["Educational Affairs"]
["Emergency Medicine"]
["Employee Assistance"]
["Endocrinology"]
["Env Building Services"]
["Environmental Hlth & Safety"]
["EOHHS Project Management"]
["Facilities Mgt"]
["Facilities Mgt-Admin."]
["Facilities Mgt-Fleet"]
["Facilities Mgt-Grounds"]
["Facilities Mgt-Maintenance"]
["Facility Plan, Eng & Const."]
["Faculty Administration"]
["Family Med & Community Health"]
["Financial Aid"]
["Financial Services"]
["FMC Devens"]
["Food Stamp Employ & Training"]
["FS-Accounts Payable"]
["FS-Asset Management"]
["FS-Budget & Planning"]
["FS-Bursar"]
["FS-Campus Systems Support"]
["FS-Compl & Cost Analysis"]
["FS-General Accounting"]
["FS-Grant Accounting"]
["FS-Payroll"]
["FS-Purchasing"]
["FS-State Contracts Admin"]
["Gastroenterology"]
["Gen Med/Prim Care"]
["Gene Therapy Center"]
["Geriatrics Medicine"]
["Government Relations"]
["Grad School Biomedical Science"]
["Grad School of Nursing Admin"]
["Graduate Medical Education"]
["Growth & Rev Diversification"]
["GSBS Program Fee"]
["GSBS-PhD/MD Program Support"]
["GSBS-Postdoc Scholars Office"]
["Health & Criminal Justice"]
["Hematology/Oncology"]
["Hospital Medicine"]
["HR-Administration"]
["HR-Compensation"]
["HR-Employee Relations"]
["HR-Immigration Services"]
["HR-Learning Development & Ops"]
["HR-Systems & Service Center"]
["HR-Talent Acquisition"]
["HR-Temprite Services"]
["HR-Workers' Compensation"]
["Infectious Disease"]
["Innovation and Business Develo"]
["IT-Academic Technology"]
["IT-Audio Visual"]
["IT-Audio Visual Educ Service"]
["IT-CHCF/IT Engineering"]
["IT-Chief Information Officer"]
["IT-Customer Services"]
["IT-Data Sciences & Technology"]
["IT-Engineering"]
["IT-Infrastructure Services"]
["IT-Security & Compliance"]
["Lab Supermarket"]
["Library"]
["MAB-South Coast"]
["MassAHEC Network"]
["MassBiologics of UMMS"]
["Master Space Planning"]
["Medical Center Parking Trust"]
["Medical Education"]
["Medicine"]
["Microbio & Physio System MaPS"]
["Molecular Cell & Cancer Biolog"]
["Molecular Medicine"]
["Molecular Medicine - Diabetes"]
["MuniMed In-State Revenue"]
["NE Newborn Screening"]
["Neurobiology"]
["Neurology"]
["Neurosurgery"]
["Ob/Gyn"]
["Office Of Clinical Affairs"]
["Office of Community Programs"]
["Office of Management"]
["Office of Research"]
["Office of Technology Managemnt"]
["OME-EPC-Summer Program"]
["OOR-IACUC/IBC"]
["OOR-Operations"]
["OOR-Research Core Admin"]
["OOR-Research Funding Service"]
["Ophthalmology"]
["Organizational Development"]
["Orthopedics & Physical Rehab."]
["Otolaryngology"]
["Outreach Program"]
["Palliative Care"]
["Parking"]
["Pathology"]
["Pediatrics"]
["Pediatrics-Development & Behav"]
["Pediatrics-Hematology/Oncology"]
["Pediatrics-Pierce Lab"]
["Pharmacy"]
["Population Hlth Science Prog"]
["Postal Services"]
["Power Plant-Operations"]
["Prev/Behav Med"]
["Program Development"]
["Program in Systems Biology"]
["Prov. Rate & Admin Cost Reim."]
["Psychiatry"]
["Psychiatry - VA Research Svcs"]
["Psychiatry-Adult Division"]
["Psychiatry-BNRI"]
["Psychiatry-Child Division"]
["Psychiatry-Child/Fam Forensic"]
["Psychiatry-Clinical Research"]
["Psychiatry-CPRT"]
["Psychiatry-Neuroimage Research"]
["Psychiatry-SPARC"]
["Public Safety"]
["Pulmonary Med"]
["Quantitative Health Sciences"]
["Radiation Oncology"]
["Radiology/Nuclear Medicine"]
["Receiving"]
["Registrar"]
["Renal Medicine"]
["Research Analytics"]
["Revenue Operations Program"]
["Rheumatology"]
["RNA Therapeutics Institute"]
["School Services"]
["Shriver Center"]
["Space Management - Admin"]
["State Supplementary PMTS ADMIN"]
["Stress Reduction Clinic"]
["Student Affairs"]
["Student Cnslng Serv"]
["Supplemental Nutritional Asst."]
["Surgery"]
["Tissue Bank Facility"]
["Title XIX - MA"]
["Transfusion Med-Weinstein"]
["Transportation"]
["Tri-River"]
["UMMHC - Community Medical Grp"]
["UMMHC-Group Practice"]
["University Events Operations"]
["Urology"]
["Wellstone Program"]
["VARIOUS"]

{"sheet":"Manager or designee","index":3,"n_rows":6,"n_cols":1,"rows_kept":6,"cut":false,"hidden":true,"merged":[]}
["Vice Chancellor or designee"]
["Senior Director or designee"]
["Director or designee"]
["Manager or designee"]
["Supervisor or designee"]
["Principal Investigator or designee"]

{"sheet":"Achieves","index":4,"n_rows":688,"n_cols":1,"rows_kept":688,"cut":false,"hidden":true,"merged":[]}
["Abstract"]
["Accelerate"]
["Acclimate"]
["Accommodate"]
["Accompany"]
["Accomplish"]
["Accumulate"]
["Achieve"]
["Acquire"]
["Act"]
["Activate"]
["Actuate"]
["Add"]
["Address"]
["Adhere"]
["Adjust"]
["Adopt"]
["Advance"]
["Advertise"]
["Advise"]
["Advocate"]
["Aid"]
["Aim"]
["Align"]
["Alleviate"]
["Allocate"]
["Alter"]
["Amend"]
["Amplify"]
["Analyze"]
["Annotate"]
["Announce"]
["Answer"]
["Anticipate"]
["Apply"]
["Appoint"]
["Appraise"]
["Approve"]
["Arbitrate"]
["Arrange"]
["Articulate"]
["Ascertain"]
["Ask"]
["Assemble"]
["Assess"]
["Assign"]
["Assist"]
["Associate"]
["Assume"]
["Attain"]
["Attend"]
["Attract"]
["Audit"]
["Augment"]
["Author"]
["Authorize"]
["Automate"]
["Avert"]
["Award"]
["Balance"]
["Bargain"]
["Battle"]
["Begin"]
["Blast"]
["Block"]
["Blog"]
["Bolster"]
["Bombard"]
["Boost"]
["Borrow"]
["Brainstorm"]
["Breach"]
["Breakdown"]
["Brief"]
["Broaden"]
["Budget"]
["Build"]
["Buy"]
["Calculate"]
["Calibrate"]
["Canvass"]
["Capitalize"]
["Capture"]
["Care"]
["Carry Out"]
["Catalog"]
["Categorize"]
["Cater"]
["Cause"]
["Centralize"]
["Chair"]
["Challenge"]
["Champion"]
["Change"]
["Channel"]
["Charge"]
["Chart"]
["Check"]
["Circulate"]
["Clarify"]
["Classify"]
["Clear"]
["Close"]
["Coach"]
["Co-Author"]
["Code"]
["Cold Call"]
["Collaborate"]
["Collate"]
["Collect"]
["Combine"]
["Comfort"]
["Command"]
["Commence"]
["Commission"]
["Commit"]
["Communicate"]
["Compare"]
["Compete"]
["Compile"]
["Complete"]
["Comply"]
["Compose"]
["Compute"]
["Conceive"]
["Conceptualize"]
["Conciliate"]
["Conclude"]
["Condense"]
["Conduct"]
["Confer"]
["Confirm"]
["Confront"]
["Conjure"]
["Connect"]
["Conserve"]
["Consider"]
["Consolidate"]
["Construct"]
["Consult"]
["Contact"]
["Contain"]
["Continue"]
["Contract"]
["Contrast"]
["Contribute"]
["Contrive"]
["Control"]
["Convene"]
["Convert"]
["Convey"]
["Convince"]
["Cooperate"]
["Coordinate"]
["Copy"]
["Correct"]
["Correlate"]
["Correspond"]
["Counsel"]
["Count"]
["Craft"]
["Create"]
["Criticize"]
["Critique"]
["Cultivate"]
["Customize"]
["Cut"]
["Deal With"]
["Debate"]
["Debug"]
["Decentralize"]
["Decide"]
["Decrease"]
["Dedicate"]
["Deduce"]
["Defend"]
["Defer"]
["Define"]
["Delegate"]
["Deliver"]
["Demolish"]
["Demonstrate"]
["Depict"]
["Deploy"]
["Depreciate"]
["Derive"]
["Describe"]
["Design"]
["Designate"]
["Detail"]
["Detect"]
["Deteriorate"]
["Determine"]
["Develop"]
["Devise"]
["Devote"]
["Diagnose"]
["Diagram"]
["Differentiate"]
["Diminish"]
["Direct"]
["Discharge"]
["Disclose"]
["Discover"]
["Discuss"]
["Dispatch"]
["Dispense"]
["Display"]
["Dissect"]
["Disseminate"]
["Distinguish"]
["Distribute"]
["Diversify"]
["Divert"]
["Divide"]
["Document"]
["Download"]
["Draft"]
["Dramatize"]
["Draw"]
["Drive"]
["Duplicate"]
["Earn"]
["Edify"]
["Edit"]
["Educate"]
["Effect"]
["Elect"]
["Elicit"]
["Eliminate"]
["Embark"]
["Emphasize"]
["Employ"]
["Enable"]
["Enact"]
["Encourage"]
["Endure"]
["Enforce"]
["Engineer"]
["Enhance"]
["Enlarge"]
["Enlighten"]
["Enlist"]
["Enrich"]
["Ensure"]
["Enter"]
["Entertain"]
["Enumerate"]
["Envision"]
["Equip"]
["Establish"]
["Estimate"]
["Evaluate"]
["Eviscerate"]
["Examine"]
["Exchange"]
["Execute"]
["Exercise"]
["Exhibit"]
["Expand"]
["Expedite"]
["Experience"]
["Experiment"]
["Explain"]
["Explore"]
["Express"]
["Extend"]
["Extract"]
["Extrapolate"]
["Fabricate"]
["Facilitate"]
["Familiarize"]
["Fashion"]
["File"]
["Filter"]
["Finalize"]
["Finance"]
["Find"]
["Fine-Tune"]
["Fix"]
["Focus"]
["Forecast"]
["Forge"]
["Form"]
["Formalize"]
["Formulate"]
["Fortify"]
["Forward"]
["Foster"]
["Frame"]
["Fulfill"]
["Function"]
["Fund"]
["Furnish"]
["Further"]
["Gain"]
["Gather"]
["Gauge"]
["Generalize"]
["Generate"]
["Govern"]
["Grade"]
["Graph"]
["Greet"]
["Gross"]
["Group"]
["Guide"]
["Halt"]
["Handle"]
["Head"]
["Heighten"]
["Help"]
["Highlight"]
["Hire"]
["Hone"]
["Host"]
["Hunt"]
["Hypothesize"]
["Identify"]
["Illustrate"]
["Imagine"]
["Immunize"]
["Impart"]
["Implement"]
["Import"]
["Impose"]
["Improve"]
["Improvise"]
["Incorporate"]
["Increase"]
["Index"]
["Individualize"]
["Infer"]
["Influence"]
["Inform"]
["Initiate"]
["Innovate"]
["Inquire"]
["Inspect"]
["Inspire"]
["Install"]
["Instill"]
["Institute"]
["Instruct"]
["Insure"]
["Integrate"]
["Interact"]
["Interface"]
["Interpolate"]
["Interpret"]
["Intervene"]
["Interview"]
["Introduce"]
["Invent"]
["Investigate"]
["Involve"]
["Issue"]
["Join"]
["Judge"]
["Justify"]
["Keep"]
["Knock"]
["Label"]
["Launch"]
["Lead"]
["Learn"]
["Leverage"]
["License"]
["Lift"]
["Lighten"]
["Liquidate"]
["List"]
["Listen"]
["Litigate"]
["Load"]
["Lobby"]
["Localize"]
["Locate"]
["Log"]
["Lubricate"]
["Magnify"]
["Maintain"]
["Manage"]
["Manipulate"]
["Manufacture"]
["Map"]
["Market"]
["Master"]
["Mastermind"]
["Match"]
["Maximize"]
["Measure"]
["Mechanize"]
["Mediate"]
["Meet"]
["Mentor"]
["Merge"]
["Methodize"]
["Minimize"]
["Mitigate"]
["Mobilize"]
["Model"]
["Moderate"]
["Modernize"]
["Modify"]
["Mold"]
["Monitor"]
["Motivate"]
["Nail"]
["Name"]
["Narrate"]
["Navigate"]
["Negate"]
["Negotiate"]
["Net"]
["Neutralize"]
["Normalize"]
["Notify"]
["Nullify"]
["Nurse"]
["Nurture"]
["Obliterate"]
["Observe"]
["Obtain"]
["Officiate"]
["Open"]
["Operate"]
["Optimize"]
["Orchestrate"]
["Order"]
["Organize"]
["Orient"]
["Outline"]
["Outsource"]
["Overcome"]
["Overhaul"]
["Oversee"]
["Package"]
["Paint"]
["Paraphrase"]
["Participate"]
["Penalize"]
["Penetrate"]
["Perceive"]
["Perfect"]
["Perform"]
["Persuade"]
["Photograph"]
["Pilot"]
["Pinpoint"]
["Pioneer"]
["Place"]
["Plan"]
["Plant"]
["Play"]
["Polish"]
["Practice"]
["Predict"]
["Prepare"]
["Prescribe"]
["Present"]
["Preserve"]
["Preside"]
["Prevent"]
["Print"]
["Prioritize"]
["Probe"]
["Process"]
["Procure"]
["Produce"]
["Program"]
["Project"]
["Promote"]
["Proofread"]
["Propel"]
["Propose"]
["Prospect"]
["Protect"]
["Prove"]
["Provide"]
["Publicize"]
["Publish"]
["Purchase"]
["Qualify"]
["Quantify"]
["Question"]
["Quote"]
["Raise"]
["Rank"]
["Rate"]
["Reach"]
["Read"]
["Realign"]
["Realize"]
["Rearrange"]
["Reason"]
["Recall"]
["Receive"]
["Recite"]
["Recognize"]
["Recommend"]
["Reconcile"]
["Reconstruct"]
["Record"]
["Recreate"]
["Recruit"]
["Rectify"]
["Reduce"]
["Refer"]
["Refine"]
["Regain"]
["Register"]
["Regulate"]
["Rehabilitate"]
["Reinforce"]
["Relate"]
["Relay"]
["Release"]
["Remodel"]
["Render"]
["Renegotiate"]
["Renew"]
["Reorganize"]
["Repair"]
["Repeat"]
["Report"]
["Reposition"]
["Represent"]
["Reproduce"]
["Research"]
["Reserve"]
["Reshape"]
["Resolve"]
["Respond"]
["Responsible For"]
["Restore"]
["Restrict"]
["Restructure"]
["Retain"]
["Retrieve"]
["Revamp"]
["Reveal"]
["Review"]
["Revise"]
["Revitalize"]
["Revolutionize"]
["Rewrite"]
["Route"]
["Run"]
["Safeguard"]
["Sanction"]
["Sand"]
["Satisfy"]
["Save"]
["Scan"]
["Schedule"]
["Scope"]
["Scrape"]
["Screen"]
["Script"]
["Scrutinize"]
["Sculpt"]
["Seal"]
["Secure"]
["Seize"]
["Select"]
["Sell"]
["Separate"]
["Serve"]
["Service"]
["Set"]
["Settle"]
["Sew"]
["Shape"]
["Share"]
["Sharpen"]
["Shatter"]
["Shear"]
["Shield"]
["Shop"]
["Shorten"]
["Show"]
["Signify"]
["Simplify"]
["Simulate"]
["Siphon"]
["Situate"]
["Sketch"]
["Solder"]
["Solicit"]
["Sort"]
["Speak"]
["Spearhead"]
["Specialize"]
["Specify"]
["Splice"]
["Sponsor"]
["Spot"]
["Staff"]
["Standardize"]
["Start"]
["State"]
["Stimulate"]
["Straighten"]
["Strategize"]
["Streamline"]
["Strengthen"]
["Structure"]
["Study"]
["Stun"]
["Subdivide"]
["Submit"]
["Substitute"]
["Subtract"]
["Succeed"]
["Suggest"]
["Summarize"]
["Supervise"]
["Supply"]
["Support"]
["Surpass"]
["Sustain"]
["Synthesize"]
["Systematize"]
["Tabulate"]
["Target"]
["Teach"]
["Tend"]
["Terminate"]
["Theorize"]
["Tighten"]
["Time"]
["Total"]
["Tour"]
["Trace"]
["Track"]
["Trade"]
["Train"]
["Transcribe"]
["Transfer"]
["Transform"]
["Transition"]
["Translate"]
["Transmit"]
["Transport"]
["Transpose"]
["Trap"]
["Travel"]
["Treat"]
["Triangulate"]
["Trim"]
["Triple"]
["Troubleshoot"]
["Tutor"]
["Uncover"]
["Undertake"]
["Unify"]
["Unite"]
["Unveil"]
["Update"]
["Upgrade"]
["Uphold"]
["Upload"]
["Use"]
["Utilize"]
["Validate"]
["Value"]
["Verbalize"]
["Verify"]
["View"]
["Visit"]
["Visualize"]
["Vitalize"]
["Volunteer"]
["Wage"]
["Wax"]
["Weigh"]
["Weld"]
["Whittle"]
["Widen"]
["Win"]
["Withdraw"]
["Witness"]
["Write"]
["X-Ray"]
["Yield"]
["Zero In"]
["Zone Off"]

{"sheet":"ADA","index":5,"n_rows":39,"n_cols":3,"rows_kept":39,"cut":false,"hidden":true,"merged":[]}
["Climbing. Ascending or descending ladders, stairs, scaffolding, ramps, poles and the like, using feet and legs and/or hands and arms. ",{"$f":"IF(COUNTIF(Form!$A$1:$A$53,A1)>=1,\"\",ROW())","v":1},{"$f":"IF(ROW(A1)-ROW(A$1)+1>COUNT(B$1:B$39),\"\",INDEX(A:A,SMALL(B$1:B$39,1+ROW(A1)-ROW(A$1))))","v":"Climbing. Ascending or descending ladders, stairs, scaffolding, ramps, poles and the like, using feet and legs and/or hands and arms. "}]
["Balancing. Maintaining body equilibrium to prevent falling and walking, standing or crouching on narrow, slippery, or erratically moving surfaces. ",{"$f":"IF(COUNTIF(Form!$A$119:$A$129,A2)>=1,\"\",ROW())","v":2},{"$f":"IF(ROW(A2)-ROW(A$1)+1>COUNT(B$1:B$39),\"\",INDEX(A:A,SMALL(B$1:B$39,1+ROW(A2)-ROW(A$1))))","v":"Balancing. Maintaining body equilibrium to prevent falling and walking, standing or crouching on narrow, slippery, or erratically moving surfaces. "}]
["Stooping. Bending body downward and forward by bending spine at the waist. ",{"$f":"IF(COUNTIF(Form!$A$119:$A$129,A3)>=1,\"\",ROW())","v":3},"Stooping. Bending body downward and forward by bending spine at the waist. "]
["Kneeling. Bending legs at knee to come to a rest on knee or knees.",{"$f":"IF(COUNTIF(Form!$A$119:$A$129,A4)>=1,\"\",ROW())","v":4},"Kneeling. Bending legs at knee to come to a rest on knee or knees."]
["Crouching. Bending the body downward and forward by bending leg and spine.",{"$f":"IF(COUNTIF(Form!$A$119:$A$129,A5)>=1,\"\",ROW())","v":5},"Crouching. Bending the body downward and forward by bending leg and spine."]
["Crawling. Moving about on hands and knees or hands and feet in flat or uneven surfaces",{"$f":"IF(COUNTIF(Form!$A$119:$A$129,A6)>=1,\"\",ROW())","v":6},"Crawling. Moving about on hands and knees or hands and feet in flat or uneven surfaces"]
["Reaching. Extending hand(s) and arm(s) in any direction.",{"$f":"IF(COUNTIF(Form!$A$119:$A$129,A7)>=1,\"\",ROW())","v":7},"Reaching. Extending hand(s) and arm(s) in any direction."]
["Standing. Particularly for sustained periods of time.",{"$f":"IF(COUNTIF(Form!$A$119:$A$129,A8)>=1,\"\",ROW())","v":8},"Standing. Particularly for sustained periods of time."]
["Walking. Moving about on foot to accomplish tasks, particularly for long distances or moving from one work site to another.",{"$f":"IF(COUNTIF(Form!$A$119:$A$129,A9)>=1,\"\",ROW())","v":9},"Walking. Moving about on foot to accomplish tasks, particularly for long distances or moving from one work site to another."]
["Pushing. Using upper extremities to press against something with steady force in order to thrust forward, downward or outward.",{"$f":"IF(COUNTIF(Form!$A$119:$A$129,A10)>=1,\"\",ROW())","v":10},"Pushing. Using upper extremities to press against something with steady force in order to thrust forward, downward or outward."]
["Pulling. Using upper extremities to exert force in order to draw, haul or tug objects in a sustained motion.",{"$f":"IF(COUNTIF(Form!$A$119:$A$129,A11)>=1,\"\",ROW())","v":11},"Pulling. Using upper extremities to exert force in order to draw, haul or tug objects in a sustained motion."]
["Lifting. Raising objects from a lower to a higher position or moving objects horizontally from position-to-position. This factor is important if it occurs to a considerable degree and requires substantial use of upper extremities and back muscles.",{"$f":"IF(COUNTIF(Form!$A$119:$A$129,A12)>=1,\"\",ROW())","v":12},"Lifting. Raising objects from a lower to a higher position or moving objects horizontally from position-to-position. This factor is important if it occurs to a considerable degree and requires substantial use of upper extremities and back muscles."]
["Fingering. Picking, pinching, typing or otherwise working, primarily with fingers rather than with the whole hand as in handling.",{"$f":"IF(COUNTIF(Form!$A$119:$A$129,A13)>=1,\"\",ROW())","v":13},"Fingering. Picking, pinching, typing or otherwise working, primarily with fingers rather than with the whole hand as in handling."]
["Grasping. Applying pressure to an object with the fingers and palm.",{"$f":"IF(COUNTIF(Form!$A$119:$A$129,A14)>=1,\"\",ROW())","v":14},"Grasping. Applying pressure to an object with the fingers and palm."]
["Feeling. Perceiving attributes of objects, such as size, shape, temperature or texture by touching with skin, particularly that of fingertips.",{"$f":"IF(COUNTIF(Form!$A$119:$A$129,A15)>=1,\"\",ROW())","v":15},"Feeling. Perceiving attributes of objects, such as size, shape, temperature or texture by touching with skin, particularly that of fingertips."]
["Talking. Expressing or exchanging ideas by means of the spoken word. Those activities in which they must convey detailed or important spoken instructions to other workers accurately, loudly, or quickly.",{"$f":"IF(COUNTIF(Form!$A$119:$A$129,A16)>=1,\"\",ROW())","v":16},"Talking. Expressing or exchanging ideas by means of the spoken word. Those activities in which they must convey detailed or important spoken instructions to other workers accurately, loudly, or quickly."]
["Hearing. Perceiving the nature of sounds at normal speaking levels with or without correction. Ability to receive detailed information through oral communication, and to make the discriminations in sound.",{"$f":"IF(COUNTIF(Form!$A$119:$A$129,A17)>=1,\"\",ROW())","v":17},"Hearing. Perceiving the nature of sounds at normal speaking levels with or without correction. Ability to receive detailed information through oral communication, and to make the discriminations in sound."]
["Repetitive motion. Substantial movements (motions) of the wrists, hands, and/or fingers.",{"$f":"IF(COUNTIF(Form!$A$119:$A$129,A18)>=1,\"\",ROW())","v":18},"Repetitive motion. Substantial movements (motions) of the wrists, hands, and/or fingers."]
["Sedentary work. Exerting up to 10 pounds of force occasionally and/or negligible amount of force frequently or constantly to lift, carry, push, pull or otherwise move objects, including the human body. Sedentary work involves sitting most of the time. ",{"$f":"IF(COUNTIF(Form!$A$119:$A$129,A19)>=1,\"\",ROW())","v":19},"Sedentary work. Exerting up to 10 pounds of force occasionally and/or negligible amount of force frequently or constantly to lift, carry, push, pull or otherwise move objects, including the human body. Sedentary work involves sitting most of the time. "]
["Light work. Exerting up to 20 pounds of force occasionally, and/or up to 10 pounds of force frequently, and/or a negligible amount of force constantly to move objects.",{"$f":"IF(COUNTIF(Form!$A$119:$A$129,A20)>=1,\"\",ROW())","v":20},"Light work. Exerting up to 20 pounds of force occasionally, and/or up to 10 pounds of force frequently, and/or a negligible amount of force constantly to move objects."]
["Medium work. Exerting up to 50 pounds of force occasionally, and/or up to 30 pounds of force frequently, and/or up to 10 pounds of force constantly to move objects.",{"$f":"IF(COUNTIF(Form!$A$119:$A$129,A21)>=1,\"\",ROW())","v":21},"Medium work. Exerting up to 50 pounds of force occasionally, and/or up to 30 pounds of force frequently, and/or up to 10 pounds of force constantly to move objects."]
["Heavy work. Exerting up to 100 pounds of force occasionally, and/or up to 50 pounds of force frequently, and/or up to 20 pounds of force constantly to move objects.",{"$f":"IF(COUNTIF(Form!$A$119:$A$129,A22)>=1,\"\",ROW())","v":22},"Heavy work. Exerting up to 100 pounds of force occasionally, and/or up to 50 pounds of force frequently, and/or up to 20 pounds of force constantly to move objects."]
["Very heavy work. Exerting in excess of 100 pounds of force occasionally, and/or in excess of 50 pounds of force frequently, and/or in excess of 20 pounds of force constantly to move objects.",{"$f":"IF(COUNTIF(Form!$A$119:$A$129,A23)>=1,\"\",ROW())","v":23},"Very heavy work. Exerting in excess of 100 pounds of force occasionally, and/or in excess of 50 pounds of force frequently, and/or in excess of 20 pounds of force constantly to move objects."]
["Required to have close visual acuity to perform an activity such as: preparing and analyzing data and figures; transcribing; viewing a computer terminal; extensive reading; visual inspection involving small defects, small parts",{"$f":"IF(COUNTIF(Form!$A$119:$A$129,A24)>=1,\"\",ROW())","v":24},"Required to have close visual acuity to perform an activity such as: preparing and analyzing data and figures; transcribing; viewing a computer terminal; extensive reading; visual inspection involving small defects, small parts"]
["Requires visual acuity to perform an activity such as: operates machines, such as lathes, drill presses, power saws, and mills where the seeing job is at or within arm's reach; performs mechanical or skilled trades tasks of a non-repetitive nature",{"$f":"IF(COUNTIF(Form!$A$119:$A$129,A25)>=1,\"\",ROW())","v":25},"Requires visual acuity to perform an activity such as: operates machines, such as lathes, drill presses, power saws, and mills where the seeing job is at or within arm's reach; performs mechanical or skilled trades tasks of a non-repetitive nature"]
["Requires visual acuity to operate motor vehicles and/or heavy equipment.",{"$f":"IF(COUNTIF(Form!$A$119:$A$129,A26)>=1,\"\",ROW())","v":26},"Requires visual acuity to operate motor vehicles and/or heavy equipment."]
["Requires visual acuity to determine the accuracy, neatness, and thoroughness of the work assigned or to make general observations of facilities or structures",{"$f":"IF(COUNTIF(Form!$A$119:$A$129,A27)>=1,\"\",ROW())","v":27},"Requires visual acuity to determine the accuracy, neatness, and thoroughness of the work assigned or to make general observations of facilities or structures"]
["Subject to environmental conditions. Protection from weather conditions but not necessarily from temperature changes.",{"$f":"IF(COUNTIF(Form!$A$119:$A$129,A28)>=1,\"\",ROW())","v":28},"Subject to environmental conditions. Protection from weather conditions but not necessarily from temperature changes."]
["Subject to outside environmental conditions. No effective protection from the weather.",{"$f":"IF(COUNTIF(Form!$A$119:$A$129,A29)>=1,\"\",ROW())","v":29},"Subject to outside environmental conditions. No effective protection from the weather."]
["Subject to both environmental conditions. Activities occur inside and outside.",{"$f":"IF(COUNTIF(Form!$A$119:$A$129,A30)>=1,\"\",ROW())","v":30},"Subject to both environmental conditions. Activities occur inside and outside."]
["Subject to extreme cold. Temperatures typically below 32 for periods of more than one hour. Consideration should be given to the effect of other environmental conditions, such as wind and humidity.",{"$f":"IF(COUNTIF(Form!$A$119:$A$129,A31)>=1,\"\",ROW())","v":31},"Subject to extreme cold. Temperatures typically below 32 for periods of more than one hour. Consideration should be given to the effect of other environmental conditions, such as wind and humidity."]
["Subject to extreme heat. Temperatures above 100 for periods of more than one hour. Consideration should be given to the effect of other environmental conditions, such as wind and humidity.",{"$f":"IF(COUNTIF(Form!$A$119:$A$129,A32)>=1,\"\",ROW())","v":32},"Subject to extreme heat. Temperatures above 100 for periods of more than one hour. Consideration should be given to the effect of other environmental conditions, such as wind and humidity."]
["Subject to noise. There is sufficient noise to cause the worker to shout in order to be heard above ambient noise level.",{"$f":"IF(COUNTIF(Form!$A$119:$A$129,A33)>=1,\"\",ROW())","v":33},"Subject to noise. There is sufficient noise to cause the worker to shout in order to be heard above ambient noise level."]
["Subject to vibration. Exposure to oscillating movements of the extremities or whole body.",{"$f":"IF(COUNTIF(Form!$A$119:$A$129,A34)>=1,\"\",ROW())","v":34},"Subject to vibration. Exposure to oscillating movements of the extremities or whole body."]
["Subject to hazards. Includes a variety of physical conditions, such as proximity to moving mechanical parts, moving vehicles, electrical current, working on scaffolding and high places, exposure to high heat or exposure to chemicals.",{"$f":"IF(COUNTIF(Form!$A$119:$A$129,A35)>=1,\"\",ROW())","v":35},"Subject to hazards. Includes a variety of physical conditions, such as proximity to moving mechanical parts, moving vehicles, electrical current, working on scaffolding and high places, exposure to high heat or exposure to chemicals."]
["Subject to atmospheric conditions. One or more of the following conditions that affect the respiratory system of the skin: fumes, odors, dust, mists, gases, or poor ventilation.",{"$f":"IF(COUNTIF(Form!$A$119:$A$129,A36)>=1,\"\",ROW())","v":36},"Subject to atmospheric conditions. One or more of the following conditions that affect the respiratory system of the skin: fumes, odors, dust, mists, gases, or poor ventilation."]
["Frequently in close quarters, crawl spaces, shafts, man holes, small enclosed rooms, small sewage and line pipes, and other areas that could cause claustrophobia.",{"$f":"IF(COUNTIF(Form!$A$119:$A$129,A37)>=1,\"\",ROW())","v":37},"Frequently in close quarters, crawl spaces, shafts, man holes, small enclosed rooms, small sewage and line pipes, and other areas that could cause claustrophobia."]
["The worker is required to function in narrow aisles or passageways.",{"$f":"IF(COUNTIF(Form!$A$119:$A$129,A38)>=1,\"\",ROW())","v":38},"The worker is required to function in narrow aisles or passageways."]
["Not exposed to any adverse environmental conditions.",{"$f":"IF(COUNTIF(Form!$A$119:$A$129,A39)>=1,\"\",ROW())","v":39},"Not exposed to any adverse environmental conditions."]

{"sheet":"Competencies","index":6,"n_rows":60,"n_cols":3,"rows_kept":60,"cut":false,"hidden":true,"merged":[]}
["Accounting - Knowledge of traditional accounting practices including accrual, obligations, and costs methods.",{"$f":"IF(COUNTIF(Form!$A$113:$A$117,A1)>=1,\"\",ROW())","v":1},{"$f":"IF(ROW(A1)-ROW(A$1)+1>COUNT(B$1:B$61),\"\",INDEX(A:A,SMALL(B$1:B$61,1+ROW(A1)-ROW(A$1))))","v":"Accounting - Knowledge of traditional accounting practices including accrual, obligations, and costs methods."}]
["Budget Administration - Knowledge of the principles and practices of budget administration and analysis; including preparing, justifying, reporting on, and executing the budget.",{"$f":"IF(COUNTIF(Form!$A$113:$A$117,A2)>=1,\"\",ROW())","v":2},{"$f":"IF(ROW(A2)-ROW(A$1)+1>COUNT(B$1:B$61),\"\",INDEX(A:A,SMALL(B$1:B$61,1+ROW(A2)-ROW(A$1))))","v":"Budget Administration - Knowledge of the principles and practices of budget administration and analysis; including preparing, justifying, reporting on, and executing the budget."}]
["Clerical - Knowledge of filing, typing, entering data, maintaining records, taking shorthand, and using and completing forms.                                                    ",{"$f":"IF(COUNTIF(Form!$A$113:$A$117,A3)>=1,\"\",ROW())","v":3},"Clerical - Knowledge of filing, typing, entering data, maintaining records, taking shorthand, and using and completing forms.                                                    "]
["Coaching and Motivating - Works to improve and reinforce performance of others. Facilitates their skill development by providing clear, behaviorally specific performance feedback, and making or eliciting specific suggestions for improvement.",{"$f":"IF(COUNTIF(Form!$A$113:$A$117,A4)>=1,\"\",ROW())","v":4},"Coaching and Motivating - Works to improve and reinforce performance of others. Facilitates their skill development by providing clear, behaviorally specific performance feedback, and making or eliciting specific suggestions for improvement."]
["Communications and Media - Knowledge of the production, communication and dissemination of information and ideas to inform and entertain via written, oral, and visual media.",{"$f":"IF(COUNTIF(Form!$A$113:$A$117,A5)>=1,\"\",ROW())","v":5},"Communications and Media - Knowledge of the production, communication and dissemination of information and ideas to inform and entertain via written, oral, and visual media."]
["Computer Skills - Uses computers, software applications, databases, and automated systems to accomplish work.",{"$f":"IF(COUNTIF(Form!$A$113:$A$117,A6)>=1,\"\",ROW())","v":6},"Computer Skills - Uses computers, software applications, databases, and automated systems to accomplish work."]
["Conflict Management - Encourages creative tension and differences of opinions. Anticipates and takes steps to prevent counter -productive confrontations. Manages and resolves conflicts and disagreements in a constructive manner.",{"$f":"IF(COUNTIF(Form!$A$113:$A$117,A7)>=1,\"\",ROW())","v":7},"Conflict Management - Encourages creative tension and differences of opinions. Anticipates and takes steps to prevent counter -productive confrontations. Manages and resolves conflicts and disagreements in a constructive manner."]
["Confidentiality - Respects and adheres to ethical principles and confidentiality regarding any sensitive information or documents used as part of professional activity.",{"$f":"IF(COUNTIF(Form!$A$113:$A$117,A8)>=1,\"\",ROW())","v":8},"Confidentiality - Respects and adheres to ethical principles and confidentiality regarding any sensitive information or documents used as part of professional activity."]
["Conscientiousness - Displays a high level of effort and commitment towards performing work; demonstrates responsible behavior.",{"$f":"IF(COUNTIF(Form!$A$113:$A$117,A9)>=1,\"\",ROW())","v":9},"Conscientiousness - Displays a high level of effort and commitment towards performing work; demonstrates responsible behavior."]
["Continual Learning - Assesses and recognizes own strengths and weaknesses; pursues self –development.",{"$f":"IF(COUNTIF(Form!$A$113:$A$117,A10)>=1,\"\",ROW())","v":10},"Continual Learning - Assesses and recognizes own strengths and weaknesses; pursues self –development."]
["Creativity and Innovation - Develops new insights into situations. Questions conventional approaches. Encourages new ideas and innovations. Designs and implements new or cutting edge programs/processes.",{"$f":"IF(COUNTIF(Form!$A$113:$A$117,A11)>=1,\"\",ROW())","v":11},"Creativity and Innovation - Develops new insights into situations. Questions conventional approaches. Encourages new ideas and innovations. Designs and implements new or cutting edge programs/processes."]
["Data Analysis - Identifies and reports key metrics, statistics, data trends, and abnormalities using tools such as Excel, SAS, SQL, R and Access.",{"$f":"IF(COUNTIF(Form!$A$113:$A$117,A12)>=1,\"\",ROW())","v":12},"Data Analysis - Identifies and reports key metrics, statistics, data trends, and abnormalities using tools such as Excel, SAS, SQL, R and Access."]
["Data Security/Confidentiality - Understands the importance of protecting confidential data and the security of systems and fully complies with all legal, regulatory, and organizational policies.",{"$f":"IF(COUNTIF(Form!$A$113:$A$117,A13)>=1,\"\",ROW())","v":13},"Data Security/Confidentiality - Understands the importance of protecting confidential data and the security of systems and fully complies with all legal, regulatory, and organizational policies."]
["Dependability - Arrives on time to work, meetings and appointments. Adheres to schedule. Follows up on decisions, actions, and commitments.",{"$f":"IF(COUNTIF(Form!$A$113:$A$117,A14)>=1,\"\",ROW())","v":14},"Dependability - Arrives on time to work, meetings and appointments. Adheres to schedule. Follows up on decisions, actions, and commitments."]
["Developing Others - Develops the ability of others to perform and contribute to UMMS by providing ongoing feedback and by providing opportunities to learn through formal and informal methods.",{"$f":"IF(COUNTIF(Form!$A$113:$A$117,A15)>=1,\"\",ROW())","v":15},"Developing Others - Develops the ability of others to perform and contribute to UMMS by providing ongoing feedback and by providing opportunities to learn through formal and informal methods."]
["Entrepreneurship - Positions UMMS for future success by identifying new opportunities. Builds the organization by developing or improving products or services. Takes calculated risks to accomplish organizational objectives.",{"$f":"IF(COUNTIF(Form!$A$113:$A$117,A16)>=1,\"\",ROW())","v":16},"Entrepreneurship - Positions UMMS for future success by identifying new opportunities. Builds the organization by developing or improving products or services. Takes calculated risks to accomplish organizational objectives."]
["Execution - Actively implements strategies that routinely deliver results. Anticipates and surmounts any obstacles that might get in the way of achieving stated objectives.",{"$f":"IF(COUNTIF(Form!$A$113:$A$117,A17)>=1,\"\",ROW())","v":17},"Execution - Actively implements strategies that routinely deliver results. Anticipates and surmounts any obstacles that might get in the way of achieving stated objectives."]
["External Awareness - Understands and keeps up -to -date on local, national, and international policies and trends that affect the organization and shape stakeholders' views; is aware of the organization's impact on the external environment.",{"$f":"IF(COUNTIF(Form!$A$113:$A$117,A18)>=1,\"\",ROW())","v":18},"External Awareness - Understands and keeps up -to -date on local, national, and international policies and trends that affect the organization and shape stakeholders' views; is aware of the organization's impact on the external environment."]
["Facilitation - Directs group discussions to identify key issues, to examine options and evidence, and to build consensus around potential solutions.",{"$f":"IF(COUNTIF(Form!$A$113:$A$117,A19)>=1,\"\",ROW())","v":19},"Facilitation - Directs group discussions to identify key issues, to examine options and evidence, and to build consensus around potential solutions."]
["Financial Management - Understands the organization's financial processes. Prepares, justifies, and administers the program budget. Oversees procurement and contracting to achieve desired results.",{"$f":"IF(COUNTIF(Form!$A$113:$A$117,A20)>=1,\"\",ROW())","v":20},"Financial Management - Understands the organization's financial processes. Prepares, justifies, and administers the program budget. Oversees procurement and contracting to achieve desired results."]
["Flexibility - Is open to change and new information; rapidly adapts to new information, changing conditions, or unexpected obstacles.",{"$f":"IF(COUNTIF(Form!$A$113:$A$117,A21)>=1,\"\",ROW())","v":21},"Flexibility - Is open to change and new information; rapidly adapts to new information, changing conditions, or unexpected obstacles."]
["Grants Management - Knowledge of requirements, practices, and procedures for soliciting, receiving, reviewing, and processing proposals, and awarding and administering grants and agreements.",{"$f":"IF(COUNTIF(Form!$A$113:$A$117,A22)>=1,\"\",ROW())","v":22},"Grants Management - Knowledge of requirements, practices, and procedures for soliciting, receiving, reviewing, and processing proposals, and awarding and administering grants and agreements."]
["Health Care Financing Knowledge - Understanding the variety of methods by which health care is paid for, particularly in regard to populations who have low incomes, disabilities or are otherwise reliant on public programs.",{"$f":"IF(COUNTIF(Form!$A$113:$A$117,A23)>=1,\"\",ROW())","v":23},"Health Care Financing Knowledge - Understanding the variety of methods by which health care is paid for, particularly in regard to populations who have low incomes, disabilities or are otherwise reliant on public programs."]
["Health Care System Knowledge - Understanding of how the health care is organized and delivered in the U.S., particularly in regard to populations who have low incomes, disabilities or are otherwise reliant on public programs.",{"$f":"IF(COUNTIF(Form!$A$113:$A$117,A24)>=1,\"\",ROW())","v":24},"Health Care System Knowledge - Understanding of how the health care is organized and delivered in the U.S., particularly in regard to populations who have low incomes, disabilities or are otherwise reliant on public programs."]
["Influencing/Negotiating - Persuades others. Builds consensus through give and take. Gains cooperation from others to obtain information and accomplish goals.",{"$f":"IF(COUNTIF(Form!$A$113:$A$117,A25)>=1,\"\",ROW())","v":25},"Influencing/Negotiating - Persuades others. Builds consensus through give and take. Gains cooperation from others to obtain information and accomplish goals."]
["Integrity/Honesty - Behaves in an honest, fair, and ethical manner. Shows consistency in words and actions. Models high standards of ethics.",{"$f":"IF(COUNTIF(Form!$A$113:$A$117,A26)>=1,\"\",ROW())","v":26},"Integrity/Honesty - Behaves in an honest, fair, and ethical manner. Shows consistency in words and actions. Models high standards of ethics."]
["Interaction with Others - Works cooperatively and collegially with others to share appropriate information, authority, responsibility, and resources. Treats others with respect and dignity.",{"$f":"IF(COUNTIF(Form!$A$113:$A$117,A27)>=1,\"\",ROW())","v":27},"Interaction with Others - Works cooperatively and collegially with others to share appropriate information, authority, responsibility, and resources. Treats others with respect and dignity."]
["Interpersonal Communication - Connects effectively with others in person. Treats others with courtesy, sensitivity, and respect. Considers and responds appropriately to the needs and feelings of different people in different situations.",{"$f":"IF(COUNTIF(Form!$A$113:$A$117,A28)>=1,\"\",ROW())","v":28},"Interpersonal Communication - Connects effectively with others in person. Treats others with courtesy, sensitivity, and respect. Considers and responds appropriately to the needs and feelings of different people in different situations."]
["Job Knowledge - Understands job responsibilities and scope of authority. Understands and applies functional concepts and skills necessary to accomplish job tasks.",{"$f":"IF(COUNTIF(Form!$A$113:$A$117,A29)>=1,\"\",ROW())","v":29},"Job Knowledge - Understands job responsibilities and scope of authority. Understands and applies functional concepts and skills necessary to accomplish job tasks."]
["Learning - Uses efficient learning techniques to acquire and apply new knowledge and skills; uses training, feedback, or other opportunities for self-learning and development.",{"$f":"IF(COUNTIF(Form!$A$113:$A$117,A30)>=1,\"\",ROW())","v":30},"Learning - Uses efficient learning techniques to acquire and apply new knowledge and skills; uses training, feedback, or other opportunities for self-learning and development."]
["Legal Analysis - Familiarity with state and federal health care laws; ability to draft and interpret legislation, regulations, contracts and other legal documents.",{"$f":"IF(COUNTIF(Form!$A$113:$A$117,A31)>=1,\"\",ROW())","v":31},"Legal Analysis - Familiarity with state and federal health care laws; ability to draft and interpret legislation, regulations, contracts and other legal documents."]
["Leveraging Diversity - Fosters an inclusive workplace where diversity and individual differences are valued and leveraged to achieve the vision and mission of UMMS.",{"$f":"IF(COUNTIF(Form!$A$113:$A$117,A32)>=1,\"\",ROW())","v":32},"Leveraging Diversity - Fosters an inclusive workplace where diversity and individual differences are valued and leveraged to achieve the vision and mission of UMMS."]
["Listening - Receives, attends to, interprets, and responds to verbal messages and other cues such as body language in ways that are appropriate to listeners and situations, along with the ability to recall information.",{"$f":"IF(COUNTIF(Form!$A$113:$A$117,A33)>=1,\"\",ROW())","v":33},"Listening - Receives, attends to, interprets, and responds to verbal messages and other cues such as body language in ways that are appropriate to listeners and situations, along with the ability to recall information."]
["Manages Resources - Selects, acquires, stores, and distributes resources such as materials, equipment, or money.",{"$f":"IF(COUNTIF(Form!$A$113:$A$117,A34)>=1,\"\",ROW())","v":34},"Manages Resources - Selects, acquires, stores, and distributes resources such as materials, equipment, or money."]
["Managing Client Relationships - Understands the techniques required to develop, maintain and manage business relationships to implement and manage projects and to identify new business opportunities.",{"$f":"IF(COUNTIF(Form!$A$113:$A$117,A35)>=1,\"\",ROW())","v":35},"Managing Client Relationships - Understands the techniques required to develop, maintain and manage business relationships to implement and manage projects and to identify new business opportunities."]
["Negotiation - Works with others towards an agreement that may involve exchanging specific resources or resolving differences.",{"$f":"IF(COUNTIF(Form!$A$113:$A$117,A36)>=1,\"\",ROW())","v":36},"Negotiation - Works with others towards an agreement that may involve exchanging specific resources or resolving differences."]
["Partnering - Develops networks and builds alliances; collaborates across boundaries to build strategic relationships and achieve common goals.",{"$f":"IF(COUNTIF(Form!$A$113:$A$117,A37)>=1,\"\",ROW())","v":37},"Partnering - Develops networks and builds alliances; collaborates across boundaries to build strategic relationships and achieve common goals."]
["Policy Analysis - Knowledge of public policy process and the ability to develop and assess public policies using tools such as literature review, qualitative and quantitative data gathering and analysis, statistics, and cost -benefit analysis.",{"$f":"IF(COUNTIF(Form!$A$113:$A$117,A38)>=1,\"\",ROW())","v":38},"Policy Analysis - Knowledge of public policy process and the ability to develop and assess public policies using tools such as literature review, qualitative and quantitative data gathering and analysis, statistics, and cost -benefit analysis."]
["Political Savvy - Identifies the internal and external politics that impact the work of UMMS. Perceives organizational and political reality and acts accordingly.",{"$f":"IF(COUNTIF(Form!$A$113:$A$117,A39)>=1,\"\",ROW())","v":39},"Political Savvy - Identifies the internal and external politics that impact the work of UMMS. Perceives organizational and political reality and acts accordingly."]
["Professional Credibility - Understands and appropriately applies principles, procedures, requirements, regulations, and policies related to specialized expertise.",{"$f":"IF(COUNTIF(Form!$A$113:$A$117,A40)>=1,\"\",ROW())","v":40},"Professional Credibility - Understands and appropriately applies principles, procedures, requirements, regulations, and policies related to specialized expertise."]
["Professional Presence - Presents oneself through dress, demeanor and interpersonal behavior in a manner that conveys knowledge, perspective, honesty, openness, self -assurance, and poise, and that inspires trust and confidence in others.",{"$f":"IF(COUNTIF(Form!$A$113:$A$117,A41)>=1,\"\",ROW())","v":41},"Professional Presence - Presents oneself through dress, demeanor and interpersonal behavior in a manner that conveys knowledge, perspective, honesty, openness, self -assurance, and poise, and that inspires trust and confidence in others."]
["Project Management - Knowledge of the principles, methods, or tools for developing, scheduling, coordinating, and managing projects and resources, including monitoring and inspecting costs, work, and contractor performance.",{"$f":"IF(COUNTIF(Form!$A$113:$A$117,A42)>=1,\"\",ROW())","v":42},"Project Management - Knowledge of the principles, methods, or tools for developing, scheduling, coordinating, and managing projects and resources, including monitoring and inspecting costs, work, and contractor performance."]
["Promoting Collaboration - Looks for opportunities to make connections with other areas within UMMS. Considers and includes internal stakeholders from across the enterprise when planning and making decisions in which they have an interest.",{"$f":"IF(COUNTIF(Form!$A$113:$A$117,A43)>=1,\"\",ROW())","v":43},"Promoting Collaboration - Looks for opportunities to make connections with other areas within UMMS. Considers and includes internal stakeholders from across the enterprise when planning and making decisions in which they have an interest."]
["Promoting Engagement - Encourages and inspires others to give their best effort each day, commit to UMMS’s goals and values, and contribute to UMMS success.",{"$f":"IF(COUNTIF(Form!$A$113:$A$117,A44)>=1,\"\",ROW())","v":44},"Promoting Engagement - Encourages and inspires others to give their best effort each day, commit to UMMS’s goals and values, and contribute to UMMS success."]
["Public Presentation - Makes clear and convincing oral presentations to individuals and groups. Listens and responds effectively to questions. Clarifies information as needed.",{"$f":"IF(COUNTIF(Form!$A$113:$A$117,A45)>=1,\"\",ROW())","v":45},"Public Presentation - Makes clear and convincing oral presentations to individuals and groups. Listens and responds effectively to questions. Clarifies information as needed."]
["Quality and Process Improvement - Identifies and implements process improvement strategies resulting in continuous quality improvement.",{"$f":"IF(COUNTIF(Form!$A$113:$A$117,A46)>=1,\"\",ROW())","v":46},"Quality and Process Improvement - Identifies and implements process improvement strategies resulting in continuous quality improvement."]
["Reasoning - Identifies rules, principles, or relationships that explain facts, data, or other information; analyzes information and makes correct inferences or draws accurate conclusions.",{"$f":"IF(COUNTIF(Form!$A$113:$A$117,A47)>=1,\"\",ROW())","v":47},"Reasoning - Identifies rules, principles, or relationships that explain facts, data, or other information; analyzes information and makes correct inferences or draws accurate conclusions."]
["Research - Knowledge of the scientific principles, methods, and processes used to conduct a systematic and objective inquiry; including study design, collection, analysis, and interpretation of data; and the reporting of results.",{"$f":"IF(COUNTIF(Form!$A$113:$A$117,A48)>=1,\"\",ROW())","v":48},"Research - Knowledge of the scientific principles, methods, and processes used to conduct a systematic and objective inquiry; including study design, collection, analysis, and interpretation of data; and the reporting of results."]
["Resilience - Deals effectively with pressure; remains optimistic and persistent, even under adversity. Recovers quickly from setbacks.",{"$f":"IF(COUNTIF(Form!$A$113:$A$117,A49)>=1,\"\",ROW())","v":49},"Resilience - Deals effectively with pressure; remains optimistic and persistent, even under adversity. Recovers quickly from setbacks."]
["Results Orientation - Focuses on desired results and sets and achieves challenging goals. Defines all related tasks and activities in terms of how they contribute to the results to be achieved.",{"$f":"IF(COUNTIF(Form!$A$113:$A$117,A50)>=1,\"\",ROW())","v":50},"Results Orientation - Focuses on desired results and sets and achieves challenging goals. Defines all related tasks and activities in terms of how they contribute to the results to be achieved."]
["Speaking - Uses correct English grammar to organize and communicate ideas in words that are appropriate to listeners and situations; uses body language appropriately.",{"$f":"IF(COUNTIF(Form!$A$113:$A$117,A51)>=1,\"\",ROW())","v":51},"Speaking - Uses correct English grammar to organize and communicate ideas in words that are appropriate to listeners and situations; uses body language appropriately."]
["Strategic Thinking - Formulates objectives and priorities, and implements plans consistent with the long -term interests of the organization in a global environment. Capitalizes on opportunities and manages risks.",{"$f":"IF(COUNTIF(Form!$A$113:$A$117,A52)>=1,\"\",ROW())","v":52},"Strategic Thinking - Formulates objectives and priorities, and implements plans consistent with the long -term interests of the organization in a global environment. Capitalizes on opportunities and manages risks."]
["Stress Tolerance - Deals calmly and effectively with high stress situations (for example, tight deadlines, hostile individuals, emergency situations, dangerous situations).",{"$f":"IF(COUNTIF(Form!$A$113:$A$117,A53)>=1,\"\",ROW())","v":53},"Stress Tolerance - Deals calmly and effectively with high stress situations (for example, tight deadlines, hostile individuals, emergency situations, dangerous situations)."]
["Teaching Others - Helps others learn through formal or informal methods; identifies training needs; provides constructive feedback; coaches others on how to perform tasks; acts as a mentor.",{"$f":"IF(COUNTIF(Form!$A$113:$A$117,A54)>=1,\"\",ROW())","v":54},"Teaching Others - Helps others learn through formal or informal methods; identifies training needs; provides constructive feedback; coaches others on how to perform tasks; acts as a mentor."]
["Team Building - Inspires and fosters team commitment, spirit, pride, and trust. Facilitates cooperation and motivates team members to accomplish group goals.",{"$f":"IF(COUNTIF(Form!$A$113:$A$117,A55)>=1,\"\",ROW())","v":55},"Team Building - Inspires and fosters team commitment, spirit, pride, and trust. Facilitates cooperation and motivates team members to accomplish group goals."]
["Technology Management - Keeps up to -date on technological developments. Makes effective use of technology to achieve results. Ensures access to and security of technology systems.",{"$f":"IF(COUNTIF(Form!$A$113:$A$117,A56)>=1,\"\",ROW())","v":56},"Technology Management - Keeps up to -date on technological developments. Makes effective use of technology to achieve results. Ensures access to and security of technology systems."]
["Vision - Takes a long -term view and builds a shared vision with others; acts as a catalyst for organizational change. Influences others to translate vision into action.",{"$f":"IF(COUNTIF(Form!$A$113:$A$117,A57)>=1,\"\",ROW())","v":57},"Vision - Takes a long -term view and builds a shared vision with others; acts as a catalyst for organizational change. Influences others to translate vision into action."]
["Visual Display of Data - Presents complex data, analyses, and information in easily understood formats.",{"$f":"IF(COUNTIF(Form!$A$113:$A$117,A58)>=1,\"\",ROW())","v":58},"Visual Display of Data - Presents complex data, analyses, and information in easily understood formats."]
["Working Effectively on a Team - Promote a spirit of cooperation with other members of the work group.  Champion an environment that supports effective teamwork.  Have the trust and respect of the team. Foster an environment of collaboration.",{"$f":"IF(COUNTIF(Form!$A$113:$A$117,A59)>=1,\"\",ROW())","v":59},"Working Effectively on a Team - Promote a spirit of cooperation with other members of the work group.  Champion an environment that supports effective teamwork.  Have the trust and respect of the team. Foster an environment of collaboration."]
["Written Communication - Writes in a clear, concise, organized, and convincing manner for the intended audience.",{"$f":"IF(COUNTIF(Form!$A$113:$A$117,A60)>=1,\"\",ROW())","v":60},"Written Communication - Writes in a clear, concise, organized, and convincing manner for the intended audience."]

{"sheet":"Education","index":7,"n_rows":18,"n_cols":1,"rows_kept":18,"cut":false,"hidden":true,"merged":[]}
["No educational requirement specified"]
["HS Graduate "]
["HS Graduate or equivalent"]
["Technical School"]
["Technical School or equivalent"]
["2-Year College Degree"]
["2-Year College Degree or equivalent"]
["Bachelor's Level Degree"]
["Bachelor's Level Degree or equivalent"]
["Master's Level Degree"]
["Master's Level Degree or equivalent"]
["Doctorate (Academic)"]
["Doctorate (Academic) or equivalent"]
["Doctorate (Professional)"]
["Doctorate (Professional) or equivalent"]
["Post-Doctorate"]
["Post-Doctorate or equivalent"]
["Other - please specify in the space below"]

{"sheet":"Exper","index":8,"n_rows":6,"n_cols":1,"rows_kept":6,"cut":false,"hidden":true,"merged":[]}
["No prior experience necessary"]
["1 - 2 years"]
["3 - 5 years"]
["5 - 10 years"]
["10 - 20 years"]
["20+ years"]

{"sheet":"ManNon","index":9,"n_rows":2,"n_cols":1,"rows_kept":2,"cut":false,"hidden":true,"merged":[]}
["Individual Contributor - No direct reports"]
["Management - Has direct reports"]

{"sheet":"Equip","index":10,"n_rows":7,"n_cols":3,"rows_kept":7,"cut":false,"hidden":true,"merged":[]}
["Telephone",{"$f":"IF(COUNTIF(Form!$A$132:$A$136,A1)>=1,\"\",ROW())","v":1},{"$f":"IF(ROW(A1)-ROW(A$1)+1>COUNT(B$1:B$7),\"\",INDEX(A:A,SMALL(B$1:B$7,1+ROW(A1)-ROW(A$1))))","v":"Telephone"}]
["Fax",{"$f":"IF(COUNTIF(Form!$A$132:$A$136,A2)>=1,\"\",ROW())","v":2},{"$f":"IF(ROW(A2)-ROW(A$1)+1>COUNT(B$1:B$7),\"\",INDEX(A:A,SMALL(B$1:B$7,1+ROW(A2)-ROW(A$1))))","v":"Fax"}]
["Copier/Scanner",{"$f":"IF(COUNTIF(Form!$A$132:$A$136,A3)>=1,\"\",ROW())","v":3},"Copier/Scanner"]
["Computer",{"$f":"IF(COUNTIF(Form!$A$132:$A$136,A4)>=1,\"\",ROW())","v":4},"Computer"]
["Light machinery",{"$f":"IF(COUNTIF(Form!$A$132:$A$136,A5)>=1,\"\",ROW())","v":5},"Light machinery"]
["Heavy machinery",{"$f":"IF(COUNTIF(Form!$A$132:$A$136,A6)>=1,\"\",ROW())","v":6},"Heavy machinery"]
["Lab equipment",{"$f":"IF(COUNTIF(Form!$A$132:$A$136,A7)>=1,\"\",ROW())","v":7},"Lab equipment"]

{"sheet":"SBU","index":11,"n_rows":4,"n_cols":1,"rows_kept":4,"cut":false,"hidden":true,"merged":[]}
["CWM"]
["MBL"]
["SCHOOL"]
["Various"]

{"sheet":"Level","index":12,"n_rows":3,"n_cols":1,"rows_kept":3,"cut":false,"hidden":true,"merged":[]}
["Occasional position requirement"]
["Frequent position requirement"]
["Constant position requirement "]

{"sheet":"Sheet1","index":13,"n_rows":36,"n_cols":7,"rows_kept":36,"cut":false,"hidden":true,"merged":[[35,6,35,10],[24,6,24,10],[25,6,25,10],[26,6,26,10],[27,6,27,10],[28,6,28,10],[29,6,29,10],[30,6,30,10],[31,6,31,10],[32,6,32,10],[33,6,33,10],[34,6,34,10],[23,6,23,10],[12,6,12,10],[13,6,13,10],[14,6,14,10],[15,6,15,10],[16,6,16,10],[17,6,17,10],[18,6,18,10],[19,6,19,10],[20,6,20,10],[21,6,21,10],[22,6,22,10],[30,0,30,4],[31,0,31,4],[4,6,4,10],[5,6,5,10],[6,6,6,10],[7,6,7,10],[8,6,8,10],[9,6,9,10],[10,6,10,10],[11,6,11,10],[24,0,24,4],[25,0,25,4],[26,0,26,4],[27,0,27,4],[28,0,28,4],[29,0,29,4],[23,0,23,4],[12,0,12,4],[13,0,13,4],[14,0,14,4],[15,0,15,4],[16,0,16,4],[17,0,17,4],[18,0,18,4],[19,0,19,4],[20,0,20,4],[21,0,21,4],[22,0,22,4],[11,0,11,4],[0,0,0,4],[1,0,1,4],[2,0,2,4],[3,0,3,4],[4,0,4,4],[5,0,5,4],[6,0,6,4],[7,0,7,4],[8,0,8,4],[9,0,9,4],[10,0,10,4]]}
["PROBLEM SOLVING/DECISION MAKING"]
["Identifies and analyzes problems weighing the relevance and accuracy of available information "]
["Generates and evaluates alternative solutions and makes effective and timely decisions"]
["Reviews the effects and implications of decisions and takes appropriate follow up actions"]
["QUANTITY/QUALITY of WORK",null,null,null,null,null,"ACCOUNTABILITY"]
["Pays close attention to detail",null,null,null,null,null,"Holds self and others accountable for measurable, high-quality, timely, and cost effective results "]
["Strives to achieve accuracy and consistency in all tasks",null,null,null,null,null,"Consistently demonstrates energy, enthusiasm, and maximum effort in completing responsibilities "]
["Organizes work to achieve maximum productivity",null,null,null,null,null,"Demonstrates flexibility in response to changing environmental priorities "]
["Actively applies strategies and tactics that routinely deliver results ",null,null,null,null,null,"Accepts personal responsibility for own actions, including errors"]
["Follows all safety rules, proactively works to prevent accidents, and encourages the use of sound judgment in order to comply with departmental and UMMS safety policies and procedures",null,null,null,null,null,"Supports other team members by prioritizing and altering daily routines to complete assignments"]
["Produces a consistently high volume of work that also meets quality standards",null,null,null,null,null,"Complies with established policies, procedures, and rules "]
["SERVICE ORIENTATION",null,null,null,null,null,"Participates in cross-functional teams  "]
["Applies effective interpersonal and problem-solving skills when responding to customers",null,null,null,null,null,"INITIATIVE"]
["Treats all internal and external customers with respect and courtesy",null,null,null,null,null,"Takes prompt action to accomplish tasks and meet goals and objectives "]
["Understands the needs and expectations of customers and anticipates how to fulfill them",null,null,null,null,null,"Completes assignments with minimal direct oversight "]
["Demonstrates cultural sensitivity and competence when interacting with customers, fellow employees, and guests",null,null,null,null,null,"Utilizes equipment, supplies, and utilities to achieve maximum efficiency"]
["Takes personal responsibility applying proactive, solution focused approaches in responding to customer needs",null,null,null,null,null,"Recommends process improvements within department or organization"]
["ACCOUNTABILITY",null,null,null,null,null,"Collaborates with other employees and departments, as needed"]
["Holds self and others accountable for measurable, high-quality, timely, and cost effective results ",null,null,null,null,null,"Actively participates in the development and achievement of team goals "]
["Consistently demonstrates energy, enthusiasm, and maximum effort in completing responsibilities ",null,null,null,null,null,"PROBLEM SOLVING/DECISION MAKING"]
["Demonstrates flexibility in response to changing environmental priorities ",null,null,null,null,null,"Identifies and analyzes problems weighing the relevance and accuracy of available information "]
["Accepts personal responsibility for own actions, including errors",null,null,null,null,null,"Generates and evaluates alternative solutions and makes effective and timely decisions"]
["Supports other team members by prioritizing and altering daily routines to complete assignments",null,null,null,null,null,"Reviews the effects and implications of decisions and takes appropriate follow up actions"]
["Complies with established policies, procedures, and rules ",null,null,null,null,null,"QUANTITY/QUALITY of WORK"]
["Participates in cross-functional teams  ",null,null,null,null,null,"Pays close attention to detail"]
["INITIATIVE",null,null,null,null,null,"Strives to achieve accuracy and consistency in all tasks"]
["Takes prompt action to accomplish tasks and meet goals and objectives ",null,null,null,null,null,"Organizes work to achieve maximum productivity"]
["Completes assignments with minimal direct oversight ",null,null,null,null,null,"Actively applies strategies and tactics that routinely deliver results "]
["Utilizes equipment, supplies, and utilities to achieve maximum efficiency",null,null,null,null,null,"Follows all safety rules, proactively works to prevent accidents, and encourages the use of sound judgment in order to comply with departmental and UMMS safety policies and procedures"]
["Recommends process improvements within department or organization",null,null,null,null,null,"Produces a consistently high volume of work that also meets quality standards"]
["Collaborates with other employees and departments, as needed",null,null,null,null,null,"SERVICE ORIENTATION"]
["Actively participates in the development and achievement of team goals ",null,null,null,null,null,"Applies effective interpersonal and problem-solving skills when responding to customers"]
[null,null,null,null,null,null,"Treats all internal and external customers with respect and courtesy"]
[null,null,null,null,null,null,"Understands the needs and expectations of customers and anticipates how to fulfill them"]
[null,null,null,null,null,null,"Demonstrates cultural sensitivity and competence when interacting with customers, fellow employees, and guests"]
[null,null,null,null,null,null,"Takes personal responsibility applying proactive, solution focused approaches in responding to customer needs"]